Workbook

Sheet 2012-13M
K1: Hamlet Open Sabre | N1: Bedford Junior | P1: Selection Date - Sosnowiec | Q1: Gateshead | S1: Selection Date - Dormagen, Lignano | T1: Welsh Open | W1: Sosnowiec WC, POL | Y1: Selection Date - Dourdan | Z1: Dormagen WC, GER | AC1: Udine WC, ITA | AE1: Selection Date - European Championships | AF1: Dourdan WC, FRA | AI1: U20 National Championships, Gillingham | AK1: Selection Date - World Championships European Championships Team Preparation Day | AL1: European Championships, Budapest, HUN | AN1: World Championships Team Preparation Day | AO1: World Championships, Porec, HRV
B2: 10 Apr 13 | K2: 01/09/2012 | N2: 22/09/2012 | P2: 23/09/2012 | Q2: 13/10/2012 | S2: 14/10/2012 | T2: 10/11/2012 | W2: 18/11/2012 | Y2: 18/11/2012 | Z2: 01/12/2012 | AC2: 05/01/2013 | AE2: 08/01/2013 | AF2: 19/01/2013 | AI2: 10/02/2013 | AK2: 10/02/2013 17/02/2013 | AL2: 05-09/03/2013 | AN2: 17/03/2013 | AO2: 02-07/04/2013
J3: NIF | L3: 170 (85*2) | O3: 111 | R3: 67 | U3: 150 (75*2) | X3: 1200 (120*10) | AA3: 1360 (136 * 10) | AD3: 1230 (123*10) | AG3: 980 (98*10) | AJ3: 81 | AM3: 1310 (131*10) | AP3: 1700(170*10)
J4: CompType | L4: dom | O4: dom | R4: dom | U4: dom | X4: int | AA4: int | AD4: int | AG4: int | AJ4: nat | AM4: int | AP4: int
J5: Entries | L5: 119 | O5: 77 | R5: 33 | U5: 94 | X5: 119 | AA5: 154 | AD5: 116 | AG5: 117 | AJ5: 47 | AM5: 59 | AP5: 108
J6: Cutoff | L6: 64 | O6: 57 | R6: 25 | U6: 64 | X6: 59 | AA6: 64 | AD6: 58 | AG6: 58 | AJ6: 35 | AM6: 29 | AP6: 54
J7: Entry Form
A8: Rank | B8: Name | C8: Club | D8: HC | E8: Year | F8: Nats | G8: Dom | H8: Int | I8: Total | J8: Nt+Dm+In
A9: 1 | B9: AIYENURO, Soji | C9: Camden | D9: ENG | E9: 93 | F9: 1620 | G9: 8280 | H9: 24110 | I9: 34010 | J9: 1+3+3 | K9: 2nd | L9: =IF(eVAL(K9)<=L$6,VLOOKUP(eVAL(K9),Multiplier,2)*eVAL(L$3),0) -> 3060 | N9: 1st | O9: =IF(eVAL(N9)<=O$6,VLOOKUP(eVAL(N9),Multiplier,2)*eVAL(O$3),0) -> 2220 | Q9: 1st | R9: [1340.00] | T9: 1st | U9: =IF(eVAL(T9)>0,IF(eVAL(T9)<=U$6,VLOOKUP(eVAL(T9),Multiplier,2)*eVAL(U$3),0),"") -> 3000 | W9: 29th | X9: =IF(eVAL(W9)>0,IF(eVAL(W9)<=X$6,VLOOKUP(eVAL(W9),Multiplier,2)*eVAL(X$3),0),"") -> 6144 | Z9: 23rd | AA9: =IF(eVAL(Z9)>0,IF(eVAL(Z9)<=AA$6,VLOOKUP(eVAL(Z9),Multiplier,2)*eVAL(AA$3),0),"") -> 7289.6 | AC9: 14th | AD9: =IF(eVAL(AC9)>0,IF(eVAL(AC9)<=AD$6,VLOOKUP(eVAL(AC9),Multiplier,2)*eVAL(AD$3),0),"") -> 10676.4 | AF9: 19th | AG9: [5409.60] | AI9: 1st | AJ9: =IF(eVAL(AI9)>0,IF(eVAL(AI9)<=AJ$6,VLOOKUP(eVAL(AI9),Multiplier,2)*eVAL(AJ$3),0),"") -> 1620 | AL9: 30th | AM9: =IF(eVAL(AL9)>0,IF(eVAL(AL9)<=AM$6,VLOOKUP(eVAL(AL9),Multiplier,2)*eVAL(AM$3),0),"") -> 0 | AO9: 50th | AP9: [2822.00]
A10: 2 | B10: SLANKARD, Kirk | C10: City | D10: ENG | E10: 93 | F10: 1296 | G10: 2932.2 | H10: 7746.4 | I10: 11974.6 | J10: 1+2+3 | K10: 12th | L10: =IF(eVAL(K10)<=L$6,VLOOKUP(eVAL(K10),Multiplier,2)*eVAL(L$3),0) -> 1489.2 | N10: 5th | O10: =IF(eVAL(N10)<=O$6,VLOOKUP(eVAL(N10),Multiplier,2)*eVAL(O$3),0) -> 1443 | W10: 34th | X10: =IF(eVAL(W10)>0,IF(eVAL(W10)<=X$6,VLOOKUP(eVAL(W10),Multiplier,2)*eVAL(X$3),0),"") -> 2376 | Z10: 79th | AA10: =IF(eVAL(Z10)>0,IF(eVAL(Z10)<=AA$6,VLOOKUP(eVAL(Z10),Multiplier,2)*eVAL(AA$3),0),"") -> 0 | AC10: 84th | AD10: =IF(eVAL(AC10)>0,IF(eVAL(AC10)<=AD$6,VLOOKUP(eVAL(AC10),Multiplier,2)*eVAL(AD$3),0),"") -> 0 | AF10: 20th | AG10: =IF(eVAL(AF10)>0,IF(eVAL(AF10)<=AG$6,VLOOKUP(eVAL(AF10),Multiplier,2)*eVAL(AG$3),0),"") -> 5370.4 | AI10: 3rd | AJ10: =IF(eVAL(AI10)>0,IF(eVAL(AI10)<=AJ$6,VLOOKUP(eVAL(AI10),Multiplier,2)*eVAL(AJ$3),0),"") -> 1296 | AO10: 86th | AP10: =IF(eVAL(AO10)>0,IF(eVAL(AO10)<=AP$6,VLOOKUP(eVAL(AO10),Multiplier,2)*eVAL(AP$3),0),"") -> 0
A11: 3 | B11: VAN HOFFELEN, Camille | C11: Camden | D11: ENG | E11: 93 | F11: 1296 | G11: 3428.56 | H11: 3900.4 | I11: 8624.96 | J11: 1+3+3 | K11: 22nd | L11: =IF(eVAL(K11)<=L$6,VLOOKUP(eVAL(K11),Multiplier,2)*eVAL(L$3),0) -> 918 | N11: 6th | O11: =IF(eVAL(N11)<=O$6,VLOOKUP(eVAL(N11),Multiplier,2)*eVAL(O$3),0) -> 1438.56 | Q11: 3rd | R11: =IF(eVAL(Q11)>0,IF(eVAL(Q11)<=R$6,VLOOKUP(eVAL(Q11),Multiplier,2)*R$3,0),"") -> 1072 | AC11: 35th | AD11: =IF(eVAL(AC11)>0,IF(eVAL(AC11)<=AD$6,VLOOKUP(eVAL(AC11),Multiplier,2)*eVAL(AD$3),0),"") -> 2410.8 | AF11: 57th | AG11: =IF(eVAL(AF11)>0,IF(eVAL(AF11)<=AG$6,VLOOKUP(eVAL(AF11),Multiplier,2)*eVAL(AG$3),0),"") -> 1489.6 | AI11: 3rd | AJ11: =IF(eVAL(AI11)>0,IF(eVAL(AI11)<=AJ$6,VLOOKUP(eVAL(AI11),Multiplier,2)*eVAL(AJ$3),0),"") -> 1296 | AL11: 41st | AM11: =IF(eVAL(AL11)>0,IF(eVAL(AL11)<=AM$6,VLOOKUP(eVAL(AL11),Multiplier,2)*eVAL(AM$3),0),"") -> 0 | AO11: 90th | AP11: =IF(eVAL(AO11)>0,IF(eVAL(AO11)<=AP$6,VLOOKUP(eVAL(AO11),Multiplier,2)*eVAL(AP$3),0),"") -> 0
A12: 4 | B12: BOTELER, Harry | C12: Truro | D12: ENG | E12: 93 | F12: 1458 | G12: 4714 | H12: 2094.4 | I12: 8266.4 | J12: 1+2+3 | K12: 1st | L12: =IF(eVAL(K12)<=L$6,VLOOKUP(eVAL(K12),Multiplier,2)*eVAL(L$3),0) -> 3400 | T12: 12th | U12: =IF(eVAL(T12)>0,IF(eVAL(T12)<=U$6,VLOOKUP(eVAL(T12),Multiplier,2)*eVAL(U$3),0),"") -> 1314 | W12: 98th | X12: =IF(eVAL(W12)>0,IF(eVAL(W12)<=X$6,VLOOKUP(eVAL(W12),Multiplier,2)*eVAL(X$3),0),"") -> 0 | Z12: 56th | AA12: =IF(eVAL(Z12)>0,IF(eVAL(Z12)<=AA$6,VLOOKUP(eVAL(Z12),Multiplier,2)*eVAL(AA$3),0),"") -> 2094.4 | AC12: 93rd | AD12: =IF(eVAL(AC12)>0,IF(eVAL(AC12)<=AD$6,VLOOKUP(eVAL(AC12),Multiplier,2)*eVAL(AD$3),0),"") -> 0 | AF12: 104th | AG12: =IF(eVAL(AF12)>0,IF(eVAL(AF12)<=AG$6,VLOOKUP(eVAL(AF12),Multiplier,2)*eVAL(AG$3),0),"") -> 0 | AI12: 2nd | AJ12: =IF(eVAL(AI12)>0,IF(eVAL(AI12)<=AJ$6,VLOOKUP(eVAL(AI12),Multiplier,2)*eVAL(AJ$3),0),"") -> 1458
A13: 5 | B13: SAUNDERS, Brynmar | C13: Truro | D13: ENG | E13: 94 | F13: 706.32 | G13: 5604 | H13: 0 | I13: 6310.32 | J13: 1+3+3 | K13: 28th | L13: [877.20] | N13: 2nd | O13: =IF(eVAL(N13)<=O$6,VLOOKUP(eVAL(N13),Multiplier,2)*eVAL(O$3),0) -> 1998 | Q13: 2nd | R13: =IF(eVAL(Q13)>0,IF(eVAL(Q13)<=R$6,VLOOKUP(eVAL(Q13),Multiplier,2)*R$3,0),"") -> 1206 | T13: 3rd | U13: =IF(eVAL(T13)>0,IF(eVAL(T13)<=U$6,VLOOKUP(eVAL(T13),Multiplier,2)*eVAL(U$3),0),"") -> 2400 | W13: 61st | X13: =IF(eVAL(W13)>0,IF(eVAL(W13)<=X$6,VLOOKUP(eVAL(W13),Multiplier,2)*eVAL(X$3),0),"") -> 0 | Z13: 128th | AA13: =IF(eVAL(Z13)>0,IF(eVAL(Z13)<=AA$6,VLOOKUP(eVAL(Z13),Multiplier,2)*eVAL(AA$3),0),"") -> 0 | AC13: 81st | AD13: =IF(eVAL(AC13)>0,IF(eVAL(AC13)<=AD$6,VLOOKUP(eVAL(AC13),Multiplier,2)*eVAL(AD$3),0),"") -> 0 | AI13: 13th | AJ13: =IF(eVAL(AI13)>0,IF(eVAL(AI13)<=AJ$6,VLOOKUP(eVAL(AI13),Multiplier,2)*eVAL(AJ$3),0),"") -> 706.32
A14: 6 | B14: LAWRENCE, Chris | C14: Imperial | D14: ENG | E14: 93 | F14: 0 | G14: 2779.36 | H14: 2208 | I14: 4987.36 | J14: 0+3+2 | K14: 17th | L14: =IF(eVAL(K14)<=L$6,VLOOKUP(eVAL(K14),Multiplier,2)*eVAL(L$3),0) -> 952 | N14: 15th | O14: =IF(eVAL(N14)<=O$6,VLOOKUP(eVAL(N14),Multiplier,2)*eVAL(O$3),0) -> 959.04 | Q14: 6th | R14: =IF(eVAL(Q14)>0,IF(eVAL(Q14)<=R$6,VLOOKUP(eVAL(Q14),Multiplier,2)*R$3,0),"") -> 868.32 | W14: 41st | X14: =IF(eVAL(W14)>0,IF(eVAL(W14)<=X$6,VLOOKUP(eVAL(W14),Multiplier,2)*eVAL(X$3),0),"") -> 2208 | Z14: 85th | AA14: =IF(eVAL(Z14)>0,IF(eVAL(Z14)<=AA$6,VLOOKUP(eVAL(Z14),Multiplier,2)*eVAL(AA$3),0),"") -> 0
A15: 7 | B15: AMSALEM, Rubin | C15: Camden | D15: ENG | E15: 96 | F15: 712.8 | G15: 4015.28 | H15: 0 | I15: 4728.08 | J15: 1+3+1 | K15: 8th | L15: =IF(eVAL(K15)<=L$6,VLOOKUP(eVAL(K15),Multiplier,2)*eVAL(L$3),0) -> 2189.6 | N15: 9th | O15: =IF(eVAL(N15)<=O$6,VLOOKUP(eVAL(N15),Multiplier,2)*eVAL(O$3),0) -> 985.68 | T15: 17th | U15: =IF(eVAL(T15)>0,IF(eVAL(T15)<=U$6,VLOOKUP(eVAL(T15),Multiplier,2)*eVAL(U$3),0),"") -> 840 | AF15: 81st | AG15: =IF(eVAL(AF15)>0,IF(eVAL(AF15)<=AG$6,VLOOKUP(eVAL(AF15),Multiplier,2)*eVAL(AG$3),0),"") -> 0 | AI15: 11th | AJ15: =IF(eVAL(AI15)>0,IF(eVAL(AI15)<=AJ$6,VLOOKUP(eVAL(AI15),Multiplier,2)*eVAL(AJ$3),0),"") -> 712.8
A16: 8 | B16: WEBB, Jonathan | C16: Camden | D16: ENG | E16: 96 | F16: 716.04 | G16: 3959.6 | H16: 0 | I16: 4675.64 | J16: 1+3+1 | K16: 30th | L16: =IF(eVAL(K16)<=L$6,VLOOKUP(eVAL(K16),Multiplier,2)*eVAL(L$3),0) -> 863.6 | N16: 3rd | O16: =IF(eVAL(N16)<=O$6,VLOOKUP(eVAL(N16),Multiplier,2)*eVAL(O$3),0) -> 1776 | T16: 11th | U16: =IF(eVAL(T16)>0,IF(eVAL(T16)<=U$6,VLOOKUP(eVAL(T16),Multiplier,2)*eVAL(U$3),0),"") -> 1320 | AF16: 76th | AG16: =IF(eVAL(AF16)>0,IF(eVAL(AF16)<=AG$6,VLOOKUP(eVAL(AF16),Multiplier,2)*eVAL(AG$3),0),"") -> 0 | AI16: 10th | AJ16: =IF(eVAL(AI16)>0,IF(eVAL(AI16)<=AJ$6,VLOOKUP(eVAL(AI16),Multiplier,2)*eVAL(AJ$3),0),"") -> 716.04
A17: 9 | B17: DEARY, William | C17: Truro | D17: ENG | E17: 97 | F17: 1053 | G17: 3272 | H17: 0 | I17: 4325 | J17: 1+2+0 | K17: 11th | L17: =IF(eVAL(K17)<=L$6,VLOOKUP(eVAL(K17),Multiplier,2)*eVAL(L$3),0) -> 1496 | N17: 3rd | O17: =IF(eVAL(N17)<=O$6,VLOOKUP(eVAL(N17),Multiplier,2)*eVAL(O$3),0) -> 1776 | AI17: 5th | AJ17: =IF(eVAL(AI17)>0,IF(eVAL(AI17)<=AJ$6,VLOOKUP(eVAL(AI17),Multiplier,2)*eVAL(AJ$3),0),"") -> 1053
A18: 10 | B18: JENNINGS, Patrick | C18: Rivington Park | D18: ENG | E18: 94 | F18: 709.56 | G18: 3358.48 | H18: 0 | I18: 4068.04 | J18: 1+3+3 | K18: 31st | L18: =IF(eVAL(K18)<=L$6,VLOOKUP(eVAL(K18),Multiplier,2)*eVAL(L$3),0) -> 856.8 | N18: 8th | O18: =IF(eVAL(N18)<=O$6,VLOOKUP(eVAL(N18),Multiplier,2)*eVAL(O$3),0) -> 1429.68 | Q18: 3rd | R18: =IF(eVAL(Q18)>0,IF(eVAL(Q18)<=R$6,VLOOKUP(eVAL(Q18),Multiplier,2)*R$3,0),"") -> 1072 | T18: 40th | U18: [267.84] | W18: 86th | X18: =IF(eVAL(W18)>0,IF(eVAL(W18)<=X$6,VLOOKUP(eVAL(W18),Multiplier,2)*eVAL(X$3),0),"") -> 0 | Z18: 137th | AA18: =IF(eVAL(Z18)>0,IF(eVAL(Z18)<=AA$6,VLOOKUP(eVAL(Z18),Multiplier,2)*eVAL(AA$3),0),"") -> 0 | AC18: 111st | AD18: =IF(eVAL(AC18)>0,IF(eVAL(AC18)<=AD$6,VLOOKUP(eVAL(AC18),Multiplier,2)*eVAL(AD$3),0),"") -> 0 | AI18: 12th | AJ18: =IF(eVAL(AI18)>0,IF(eVAL(AI18)<=AJ$6,VLOOKUP(eVAL(AI18),Multiplier,2)*eVAL(AJ$3),0),"") -> 709.56
A19: 11 | B19: HORRIX, Jack | C19: Camden | D19: ENG | E19: 95 | F19: 0 | G19: 4002.56 | H19: 0 | I19: 4002.56 | J19: 0+3+2 | K19: 14th | L19: =IF(eVAL(K19)<=L$6,VLOOKUP(eVAL(K19),Multiplier,2)*eVAL(L$3),0) -> 1475.6 | N19: 23rd | O19: =IF(eVAL(N19)<=O$6,VLOOKUP(eVAL(N19),Multiplier,2)*eVAL(O$3),0) -> 594.96 | Q19: 10th | R19: [592.28] | T19: 8th | U19: =IF(eVAL(T19)>0,IF(eVAL(T19)<=U$6,VLOOKUP(eVAL(T19),Multiplier,2)*eVAL(U$3),0),"") -> 1932 | W19: 91st | X19: =IF(eVAL(W19)>0,IF(eVAL(W19)<=X$6,VLOOKUP(eVAL(W19),Multiplier,2)*eVAL(X$3),0),"") -> 0 | AF19: 82nd | AG19: =IF(eVAL(AF19)>0,IF(eVAL(AF19)<=AG$6,VLOOKUP(eVAL(AF19),Multiplier,2)*eVAL(AG$3),0),"") -> 0
A20: 12 | B20: BETTLE, Will | C20: Durham Uni | D20: ENG | E20: 94 | F20: 0 | G20: 3807.92 | H20: 0 | I20: 3807.92 | J20: 0+3+1 | K20: 10th | L20: =IF(eVAL(K20)<=L$6,VLOOKUP(eVAL(K20),Multiplier,2)*eVAL(L$3),0) -> 1502.8 | N20: 7th | O20: =IF(eVAL(N20)<=O$6,VLOOKUP(eVAL(N20),Multiplier,2)*eVAL(O$3),0) -> 1434.12 | Q20: 5th | R20: =IF(eVAL(Q20)>0,IF(eVAL(Q20)<=R$6,VLOOKUP(eVAL(Q20),Multiplier,2)*R$3,0),"") -> 871 | AC20: 95th | AD20: =IF(eVAL(AC20)>0,IF(eVAL(AC20)<=AD$6,VLOOKUP(eVAL(AC20),Multiplier,2)*eVAL(AD$3),0),"") -> 0
A21: 13 | B21: SIMMONS, John | C21: Shakespeare's Swords | D21: ENG | E21: 93 | F21: 719.28 | G21: 2790.64 | H21: 0 | I21: 3509.92 | J21: 1+3+2 | K21: 26th | L21: =IF(eVAL(K21)<=L$6,VLOOKUP(eVAL(K21),Multiplier,2)*eVAL(L$3),0) -> 890.8 | N21: 21st | O21: =IF(eVAL(N21)<=O$6,VLOOKUP(eVAL(N21),Multiplier,2)*eVAL(O$3),0) -> 603.84 | Q21: 15th | R21: [578.88] | T21: 15th | U21: =IF(eVAL(T21)>0,IF(eVAL(T21)<=U$6,VLOOKUP(eVAL(T21),Multiplier,2)*eVAL(U$3),0),"") -> 1296 | W21: 102nd | X21: =IF(eVAL(W21)>0,IF(eVAL(W21)<=X$6,VLOOKUP(eVAL(W21),Multiplier,2)*eVAL(X$3),0),"") -> 0 | Z21: 125th | AA21: =IF(eVAL(Z21)>0,IF(eVAL(Z21)<=AA$6,VLOOKUP(eVAL(Z21),Multiplier,2)*eVAL(AA$3),0),"") -> 0 | AI21: 9th | AJ21: =IF(eVAL(AI21)>0,IF(eVAL(AI21)<=AJ$6,VLOOKUP(eVAL(AI21),Multiplier,2)*eVAL(AJ$3),0),"") -> 719.28
A22: 14 | B22: POTTER, James | C22: Camden | D22: WAL | E22: 94 | F22: 1049.76 | G22: 2388.52 | H22: 0 | I22: 3438.28 | J22: 1+3+0 | N22: 35th | O22: =IF(eVAL(N22)<=O$6,VLOOKUP(eVAL(N22),Multiplier,2)*eVAL(O$3),0) -> 217.56 | Q22: 8th | R22: =IF(eVAL(Q22)>0,IF(eVAL(Q22)<=R$6,VLOOKUP(eVAL(Q22),Multiplier,2)*R$3,0),"") -> 862.96 | T22: 13th | U22: =IF(eVAL(T22)>0,IF(eVAL(T22)<=U$6,VLOOKUP(eVAL(T22),Multiplier,2)*eVAL(U$3),0),"") -> 1308 | AI22: 6th | AJ22: =IF(eVAL(AI22)>0,IF(eVAL(AI22)<=AJ$6,VLOOKUP(eVAL(AI22),Multiplier,2)*eVAL(AJ$3),0),"") -> 1049.76
A23: 15 | B23: GANDER-COMPTON, Jacob | C23: Camden | D23: ENG | E23: 95 | F23: 703.08 | G23: 2668.88 | H23: 0 | I23: 3371.96 | J23: 1+3+2 | K23: 50th | L23: [282.20] | N23: 10th | O23: =IF(eVAL(N23)<=O$6,VLOOKUP(eVAL(N23),Multiplier,2)*eVAL(O$3),0) -> 981.24 | Q23: 7th | R23: =IF(eVAL(Q23)>0,IF(eVAL(Q23)<=R$6,VLOOKUP(eVAL(Q23),Multiplier,2)*R$3,0),"") -> 865.64 | T23: 20th | U23: =IF(eVAL(T23)>0,IF(eVAL(T23)<=U$6,VLOOKUP(eVAL(T23),Multiplier,2)*eVAL(U$3),0),"") -> 822 | Z23: 130th | AA23: =IF(eVAL(Z23)>0,IF(eVAL(Z23)<=AA$6,VLOOKUP(eVAL(Z23),Multiplier,2)*eVAL(AA$3),0),"") -> 0 | AC23: 87th | AD23: =IF(eVAL(AC23)>0,IF(eVAL(AC23)<=AD$6,VLOOKUP(eVAL(AC23),Multiplier,2)*eVAL(AD$3),0),"") -> 0 | AI23: 14th | AJ23: =IF(eVAL(AI23)>0,IF(eVAL(AI23)<=AJ$6,VLOOKUP(eVAL(AI23),Multiplier,2)*eVAL(AJ$3),0),"") -> 703.08
A24: 16 | B24: BOWLEY, Stan | C24: Rivington Park | D24: ENG | E24: 94 | F24: 427.68 | G24: 2381.72 | H24: 0 | I24: 2809.4 | J24: 1+3+0 | K24: 40th | L24: [316.20] | N24: 14th | O24: =IF(eVAL(N24)<=O$6,VLOOKUP(eVAL(N24),Multiplier,2)*eVAL(O$3),0) -> 963.48 | Q24: 13th | R24: =IF(eVAL(Q24)>0,IF(eVAL(Q24)<=R$6,VLOOKUP(eVAL(Q24),Multiplier,2)*R$3,0),"") -> 584.24 | T24: 18th | U24: =IF(eVAL(T24)>0,IF(eVAL(T24)<=U$6,VLOOKUP(eVAL(T24),Multiplier,2)*eVAL(U$3),0),"") -> 834 | AI24: 25th | AJ24: =IF(eVAL(AI24)>0,IF(eVAL(AI24)<=AJ$6,VLOOKUP(eVAL(AI24),Multiplier,2)*eVAL(AJ$3),0),"") -> 427.68
A25: 17 | B25: VEITCH, Robert | C25: Rivington Park | D25: SCO | E25: 94 | F25: 443.88 | G25: 2156 | H25: 0 | I25: 2599.88 | J25: 1+3+0 | K25: 36th | L25: [329.80] | N25: 11th | O25: =IF(eVAL(N25)<=O$6,VLOOKUP(eVAL(N25),Multiplier,2)*eVAL(O$3),0) -> 976.8 | Q25: 17th | R25: =IF(eVAL(Q25)>0,IF(eVAL(Q25)<=R$6,VLOOKUP(eVAL(Q25),Multiplier,2)*R$3,0),"") -> 375.2 | T25: 23rd | U25: =IF(eVAL(T25)>0,IF(eVAL(T25)<=U$6,VLOOKUP(eVAL(T25),Multiplier,2)*eVAL(U$3),0),"") -> 804 | AI25: 20th | AJ25: =IF(eVAL(AI25)>0,IF(eVAL(AI25)<=AJ$6,VLOOKUP(eVAL(AI25),Multiplier,2)*eVAL(AJ$3),0),"") -> 443.88
A26: 18 | B26: YOUNG, Sebastian | C26: Shakespeare's Swords | D26: ENG | E26: 93 | F26: 0 | G26: 2307.88 | H26: 0 | I26: 2307.88 | J26: 0+3+2 | K26: 20th | L26: =IF(eVAL(K26)<=L$6,VLOOKUP(eVAL(K26),Multiplier,2)*eVAL(L$3),0) -> 931.6 | N26: 20th | O26: =IF(eVAL(N26)<=O$6,VLOOKUP(eVAL(N26),Multiplier,2)*eVAL(O$3),0) -> 608.28 | Q26: 9th | R26: [594.96] | T26: 29th | U26: =IF(eVAL(T26)>0,IF(eVAL(T26)<=U$6,VLOOKUP(eVAL(T26),Multiplier,2)*eVAL(U$3),0),"") -> 768 | W26: 112nd | X26: =IF(eVAL(W26)>0,IF(eVAL(W26)<=X$6,VLOOKUP(eVAL(W26),Multiplier,2)*eVAL(X$3),0),"") -> 0 | Z26: 91st | AA26: =IF(eVAL(Z26)>0,IF(eVAL(Z26)<=AA$6,VLOOKUP(eVAL(Z26),Multiplier,2)*eVAL(AA$3),0),"") -> 0
A27: 19 | B27: DOWSE, Niall | C27: MX Fencing | D27: NIR | E27: 94 | F27: 453.6 | G27: 1794.4 | H27: 0 | I27: 2248 | J27: 1+3+0 | K27: 89th | L27: =IF(eVAL(K27)<=L$6,VLOOKUP(eVAL(K27),Multiplier,2)*eVAL(L$3),0) -> 0 | N27: 11th | O27: =IF(eVAL(N27)<=O$6,VLOOKUP(eVAL(N27),Multiplier,2)*eVAL(O$3),0) -> 976.8 | Q27: 11th | R27: =IF(eVAL(Q27)>0,IF(eVAL(Q27)<=R$6,VLOOKUP(eVAL(Q27),Multiplier,2)*R$3,0),"") -> 589.6 | T27: 57th | U27: =IF(eVAL(T27)>0,IF(eVAL(T27)<=U$6,VLOOKUP(eVAL(T27),Multiplier,2)*eVAL(U$3),0),"") -> 228 | AI27: 17th | AJ27: =IF(eVAL(AI27)>0,IF(eVAL(AI27)<=AJ$6,VLOOKUP(eVAL(AI27),Multiplier,2)*eVAL(AJ$3),0),"") -> 453.6
A28: 20 | B28: COOPER, Samuel | C28: Shakespeare's Swords | D28: ENG | E28: 95 | F28: 450.36 | G28: 1794.48 | H28: 0 | I28: 2244.84 | J28: 1+3+0 | K28: 53rd | L28: [272.00] | N28: 19th | O28: =IF(eVAL(N28)<=O$6,VLOOKUP(eVAL(N28),Multiplier,2)*eVAL(O$3),0) -> 612.72 | Q28: 25th | R28: =IF(eVAL(Q28)>0,IF(eVAL(Q28)<=R$6,VLOOKUP(eVAL(Q28),Multiplier,2)*R$3,0),"") -> 353.76 | T28: 19th | U28: =IF(eVAL(T28)>0,IF(eVAL(T28)<=U$6,VLOOKUP(eVAL(T28),Multiplier,2)*eVAL(U$3),0),"") -> 828 | AI28: 18th | AJ28: =IF(eVAL(AI28)>0,IF(eVAL(AI28)<=AJ$6,VLOOKUP(eVAL(AI28),Multiplier,2)*eVAL(AJ$3),0),"") -> 450.36
A29: 21 | B29: HOSKING, William John | C29: Truro | D29: ENG | E29: 96 | F29: 440.64 | G29: 1422.76 | H29: 0 | I29: 1863.4 | J29: 1+2+0 | K29: 32nd | L29: =IF(eVAL(K29)<=L$6,VLOOKUP(eVAL(K29),Multiplier,2)*eVAL(L$3),0) -> 850 | N29: 28th | O29: =IF(eVAL(N29)<=O$6,VLOOKUP(eVAL(N29),Multiplier,2)*eVAL(O$3),0) -> 572.76 | AI29: 21st | AJ29: =IF(eVAL(AI29)>0,IF(eVAL(AI29)<=AJ$6,VLOOKUP(eVAL(AI29),Multiplier,2)*eVAL(AJ$3),0),"") -> 440.64
A30: 22 | B30: JONES, Matthew | C30: Salle Ursa | D30: ENG | E30: 94 | F30: 447.12 | G30: 1335 | H30: 0 | I30: 1782.12 | J30: 1+2+0 | N30: 32nd | O30: =IF(eVAL(N30)<=O$6,VLOOKUP(eVAL(N30),Multiplier,2)*eVAL(O$3),0) -> 555 | T30: 27th | U30: =IF(eVAL(T30)>0,IF(eVAL(T30)<=U$6,VLOOKUP(eVAL(T30),Multiplier,2)*eVAL(U$3),0),"") -> 780 | AI30: 19th | AJ30: =IF(eVAL(AI30)>0,IF(eVAL(AI30)<=AJ$6,VLOOKUP(eVAL(AI30),Multiplier,2)*eVAL(AJ$3),0),"") -> 447.12
A31: 23 | B31: SCOTT, Stuart | C31: Lazlo | D31: SCO | E31: 94 | F31: 0 | G31: 1744.76 | H31: 0 | I31: 1744.76 | J31: 0+3+0 | K31: 37th | L31: [326.40] | N31: 17th | O31: =IF(eVAL(N31)<=O$6,VLOOKUP(eVAL(N31),Multiplier,2)*eVAL(O$3),0) -> 621.6 | Q31: 20th | R31: =IF(eVAL(Q31)>0,IF(eVAL(Q31)<=R$6,VLOOKUP(eVAL(Q31),Multiplier,2)*R$3,0),"") -> 367.16 | T31: 31st | U31: =IF(eVAL(T31)>0,IF(eVAL(T31)<=U$6,VLOOKUP(eVAL(T31),Multiplier,2)*eVAL(U$3),0),"") -> 756
A32: 24 | B32: HARRIS, Rafe | C32: Millfield | D32: ENG | E32: 96 | F32: 414.72 | G32: 1254.36 | H32: 0 | I32: 1669.08 | J32: 1+3+0 | K32: 52nd | L32: =IF(eVAL(K32)<=L$6,VLOOKUP(eVAL(K32),Multiplier,2)*eVAL(L$3),0) -> 275.4 | N32: 18th | O32: =IF(eVAL(N32)<=O$6,VLOOKUP(eVAL(N32),Multiplier,2)*eVAL(O$3),0) -> 617.16 | Q32: 22nd | R32: =IF(eVAL(Q32)>0,IF(eVAL(Q32)<=R$6,VLOOKUP(eVAL(Q32),Multiplier,2)*R$3,0),"") -> 361.8 | T32: 51st | U32: [246.00] | AI32: 29th | AJ32: =IF(eVAL(AI32)>0,IF(eVAL(AI32)<=AJ$6,VLOOKUP(eVAL(AI32),Multiplier,2)*eVAL(AJ$3),0),"") -> 414.72
A33: 25 | B33: MAXWELL, Josh | C33: Truro | D33: ENG | E33: 97 | F33: 430.92 | G33: 954.6 | H33: 0 | I33: 1385.52 | J33: 1+2+0 | K33: 69th | L33: =IF(eVAL(K33)<=L$6,VLOOKUP(eVAL(K33),Multiplier,2)*eVAL(L$3),0) -> 0 | N33: 16th | O33: =IF(eVAL(N33)<=O$6,VLOOKUP(eVAL(N33),Multiplier,2)*eVAL(O$3),0) -> 954.6 | AI33: 24th | AJ33: =IF(eVAL(AI33)>0,IF(eVAL(AI33)<=AJ$6,VLOOKUP(eVAL(AI33),Multiplier,2)*eVAL(AJ$3),0),"") -> 430.92
A34: 26 | B34: HALLIWELL, William | C34: Shakespeare's Swords | D34: ENG | E34: 96 | F34: 0 | G34: 1368.24 | H34: 0 | I34: 1368.24 | J34: 0+3+0 | K34: 56th | L34: =IF(eVAL(K34)<=L$6,VLOOKUP(eVAL(K34),Multiplier,2)*eVAL(L$3),0) -> 261.8 | N34: 69th | O34: =IF(eVAL(N34)<=O$6,VLOOKUP(eVAL(N34),Multiplier,2)*eVAL(O$3),0) -> 0 | Q34: 24th | R34: =IF(eVAL(Q34)>0,IF(eVAL(Q34)<=R$6,VLOOKUP(eVAL(Q34),Multiplier,2)*R$3,0),"") -> 356.44 | T34: 32nd | U34: =IF(eVAL(T34)>0,IF(eVAL(T34)<=U$6,VLOOKUP(eVAL(T34),Multiplier,2)*eVAL(U$3),0),"") -> 750
A35: 27 | B35: HENDRA, Tom | C35: Truro | D35: ENG | E35: 95 | F35: 0 | G35: 1304.52 | H35: 0 | I35: 1304.52 | J35: 0+2+0 | K35: 34th | L35: =IF(eVAL(K35)<=L$6,VLOOKUP(eVAL(K35),Multiplier,2)*eVAL(L$3),0) -> 336.6 | N35: 13th | O35: =IF(eVAL(N35)<=O$6,VLOOKUP(eVAL(N35),Multiplier,2)*eVAL(O$3),0) -> 967.92 | Q35: . | R35: =IF(eVAL(Q35)>0,IF(eVAL(Q35)<=R$6,VLOOKUP(eVAL(Q35),Multiplier,2)*R$3,0),"") -> 
A36: 28 | B36: EDMUNDSON, Jack | C36: South London Swords | D36: ENG | E36: 97 | F36: 434.16 | G36: 848.64 | H36: 0 | I36: 1282.8 | J36: 1+3+0 | K36: 111st | L36: =IF(eVAL(K36)<=L$6,VLOOKUP(eVAL(K36),Multiplier,2)*eVAL(L$3),0) -> 0 | N36: 26th | O36: =IF(eVAL(N36)<=O$6,VLOOKUP(eVAL(N36),Multiplier,2)*eVAL(O$3),0) -> 581.64 | T36: 44th | U36: =IF(eVAL(T36)>0,IF(eVAL(T36)<=U$6,VLOOKUP(eVAL(T36),Multiplier,2)*eVAL(U$3),0),"") -> 267 | AI36: 23rd | AJ36: =IF(eVAL(AI36)>0,IF(eVAL(AI36)<=AJ$6,VLOOKUP(eVAL(AI36),Multiplier,2)*eVAL(AJ$3),0),"") -> 434.16
A37: 29 | B37: MOORE, William | C37: Camden | D37: ENG | E37: 96 | F37: 1046.52 | G37: 219.78 | H37: 0 | I37: 1266.3 | J37: 1+1+0 | N37: 34th | O37: =IF(eVAL(N37)<=O$6,VLOOKUP(eVAL(N37),Multiplier,2)*eVAL(O$3),0) -> 219.78 | AI37: 7th | AJ37: =IF(eVAL(AI37)>0,IF(eVAL(AI37)<=AJ$6,VLOOKUP(eVAL(AI37),Multiplier,2)*eVAL(AJ$3),0),"") -> 1046.52
A38: 30 | B38: BURTON, George Edward | C38: Bedford | D38: ENG | E38: 96 | F38: 405 | G38: 828.52 | H38: 0 | I38: 1233.52 | J38: 1+2+0 | K38: 63rd | L38: =IF(eVAL(K38)<=L$6,VLOOKUP(eVAL(K38),Multiplier,2)*eVAL(L$3),0) -> 238 | N38: 24th | O38: =IF(eVAL(N38)<=O$6,VLOOKUP(eVAL(N38),Multiplier,2)*eVAL(O$3),0) -> 590.52 | AI38: 32nd | AJ38: =IF(eVAL(AI38)>0,IF(eVAL(AI38)<=AJ$6,VLOOKUP(eVAL(AI38),Multiplier,2)*eVAL(AJ$3),0),"") -> 405
A39: 31 | B39: GELLETT, Charlie | C39: MX Fencing | D39: ENG | E39: 96 | F39: 411.48 | G39: 814.44 | H39: 0 | I39: 1225.92 | J39: 1+3+0 | K39: 77th | L39: =IF(eVAL(K39)<=L$6,VLOOKUP(eVAL(K39),Multiplier,2)*eVAL(L$3),0) -> 0 | N39: 31st | O39: =IF(eVAL(N39)<=O$6,VLOOKUP(eVAL(N39),Multiplier,2)*eVAL(O$3),0) -> 559.44 | T39: 48th | U39: =IF(eVAL(T39)>0,IF(eVAL(T39)<=U$6,VLOOKUP(eVAL(T39),Multiplier,2)*eVAL(U$3),0),"") -> 255 | AI39: 30th | AJ39: =IF(eVAL(AI39)>0,IF(eVAL(AI39)<=AJ$6,VLOOKUP(eVAL(AI39),Multiplier,2)*eVAL(AJ$3),0),"") -> 411.48
A40: 32 | B40: POTTER, Nathan | C40: Camden | D40: WAL | E40: 96 | F40: 437.4 | G40: 787.1 | H40: 0 | I40: 1224.5 | J40: 1+3+0 | K40: 71st | L40: =IF(eVAL(K40)<=L$6,VLOOKUP(eVAL(K40),Multiplier,2)*eVAL(L$3),0) -> 0 | N40: 38th | O40: =IF(eVAL(N40)<=O$6,VLOOKUP(eVAL(N40),Multiplier,2)*eVAL(O$3),0) -> 210.9 | Q40: 16th | R40: =IF(eVAL(Q40)>0,IF(eVAL(Q40)<=R$6,VLOOKUP(eVAL(Q40),Multiplier,2)*R$3,0),"") -> 576.2 | T40: 67th | U40: =IF(eVAL(T40)>0,IF(eVAL(T40)<=U$6,VLOOKUP(eVAL(T40),Multiplier,2)*eVAL(U$3),0),"") -> 0 | AI40: 22nd | AJ40: =IF(eVAL(AI40)>0,IF(eVAL(AI40)<=AJ$6,VLOOKUP(eVAL(AI40),Multiplier,2)*eVAL(AJ$3),0),"") -> 437.4
A41: 33 | B41: ALDOUS-GRANBY, James | C41: Foyle & Londonderry | D41: NIR | E41: 94 | F41: 424.44 | G41: 788.02 | H41: 0 | I41: 1212.46 | J41: 1+3+0 | N41: 40th | O41: =IF(eVAL(N41)<=O$6,VLOOKUP(eVAL(N41),Multiplier,2)*eVAL(O$3),0) -> 206.46 | Q41: 14th | R41: =IF(eVAL(Q41)>0,IF(eVAL(Q41)<=R$6,VLOOKUP(eVAL(Q41),Multiplier,2)*R$3,0),"") -> 581.56 | T41: 72nd | U41: =IF(eVAL(T41)>0,IF(eVAL(T41)<=U$6,VLOOKUP(eVAL(T41),Multiplier,2)*eVAL(U$3),0),"") -> 0 | AI41: 26th | AJ41: =IF(eVAL(AI41)>0,IF(eVAL(AI41)<=AJ$6,VLOOKUP(eVAL(AI41),Multiplier,2)*eVAL(AJ$3),0),"") -> 424.44
A42: 34 | B42: DACEY, Simon | C42: MX Fencing | D42: ENG | E42: 97 | F42: 411.48 | G42: 712.14 | H42: 0 | I42: 1123.62 | J42: 1+3+0 | K42: 61st | L42: =IF(eVAL(K42)<=L$6,VLOOKUP(eVAL(K42),Multiplier,2)*eVAL(L$3),0) -> 244.8 | N42: 36th | O42: =IF(eVAL(N42)<=O$6,VLOOKUP(eVAL(N42),Multiplier,2)*eVAL(O$3),0) -> 215.34 | T42: 49th | U42: =IF(eVAL(T42)>0,IF(eVAL(T42)<=U$6,VLOOKUP(eVAL(T42),Multiplier,2)*eVAL(U$3),0),"") -> 252 | AI42: 30th | AJ42: =IF(eVAL(AI42)>0,IF(eVAL(AI42)<=AJ$6,VLOOKUP(eVAL(AI42),Multiplier,2)*eVAL(AJ$3),0),"") -> 411.48
A43: 35 | B43: WILLIAMSON, Andrew | C43: Edinburgh | D43: SCO | E43: 95 | F43: 0 | G43: 1123.12 | H43: 0 | I43: 1123.12 | J43: 0+3+0 | K43: 60th | L43: =IF(eVAL(K43)<=L$6,VLOOKUP(eVAL(K43),Multiplier,2)*eVAL(L$3),0) -> 248.2 | Q43: 12th | R43: =IF(eVAL(Q43)>0,IF(eVAL(Q43)<=R$6,VLOOKUP(eVAL(Q43),Multiplier,2)*R$3,0),"") -> 586.92 | T43: 37th | U43: =IF(eVAL(T43)>0,IF(eVAL(T43)<=U$6,VLOOKUP(eVAL(T43),Multiplier,2)*eVAL(U$3),0),"") -> 288
A44: 36 | B44: HOLDSWORTH, George | C44: MX Fencing | D44: ENG | E44: 94 | F44: 0 | G44: 1081.48 | H44: 0 | I44: 1081.48 | J44: 1+3+0 | K44: 54th | L44: =IF(eVAL(K44)<=L$6,VLOOKUP(eVAL(K44),Multiplier,2)*eVAL(L$3),0) -> 268.6 | N44: 30th | O44: =IF(eVAL(N44)<=O$6,VLOOKUP(eVAL(N44),Multiplier,2)*eVAL(O$3),0) -> 563.88 | T44: 50th | U44: =IF(eVAL(T44)>0,IF(eVAL(T44)<=U$6,VLOOKUP(eVAL(T44),Multiplier,2)*eVAL(U$3),0),"") -> 249 | AI44: 36th | AJ44: =IF(eVAL(AI44)>0,IF(eVAL(AI44)<=AJ$6,VLOOKUP(eVAL(AI44),Multiplier,2)*eVAL(AJ$3),0),"") -> 0
A45: 37 | B45: WILLIAMS, Nick | C45: NLSC | D45: ENG | E45: 95 | F45: 1043.28 | G45: 0 | H45: 0 | I45: 1043.28 | J45: 1+0+0 | AI45: 8th | AJ45: =IF(eVAL(AI45)>0,IF(eVAL(AI45)<=AJ$6,VLOOKUP(eVAL(AI45),Multiplier,2)*eVAL(AJ$3),0),"") -> 1043.28
A46: 38 | B46: WOODBURN, Fraser | C46: Truro | D46: SCO | E46: 97 | F46: 0 | G46: 902 | H46: 0 | I46: 902 | J46: 0+2+0 | K46: 44th | L46: =IF(eVAL(K46)<=L$6,VLOOKUP(eVAL(K46),Multiplier,2)*eVAL(L$3),0) -> 302.6 | N46: 22nd | O46: =IF(eVAL(N46)<=O$6,VLOOKUP(eVAL(N46),Multiplier,2)*eVAL(O$3),0) -> 599.4
A47: 39 | B47: AMSALEM, Eden | C47: Camden | D47: ENG | E47: 98 | F47: 699.84 | G47: 197.58 | H47: 0 | I47: 897.42 | J47: 1+1+0 | N47: 44th | O47: =IF(eVAL(N47)<=O$6,VLOOKUP(eVAL(N47),Multiplier,2)*eVAL(O$3),0) -> 197.58 | AI47: 15th | AJ47: =IF(eVAL(AI47)>0,IF(eVAL(AI47)<=AJ$6,VLOOKUP(eVAL(AI47),Multiplier,2)*eVAL(AJ$3),0),"") -> 699.84
A48: 40 | B48: VAN NIEUWERBURGH, Christian | C48: Shakespeare's Swords | D48: ENG | E48: 96 | F48: 0 | G48: 845.8 | H48: 0 | I48: 845.8 | J48: 0+2+0 | K48: 54th | L48: =IF(eVAL(K48)<=L$6,VLOOKUP(eVAL(K48),Multiplier,2)*eVAL(L$3),0) -> 268.6 | N48: 27th | O48: =IF(eVAL(N48)<=O$6,VLOOKUP(eVAL(N48),Multiplier,2)*eVAL(O$3),0) -> 577.2
A49: 41 | B49: WIDE, Daniel | C49: Shakespeare's Swords | D49: ENG | E49: 93 | F49: 0 | G49: 823.82 | H49: 0 | I49: 823.82 | J49: 1+3+0 | K49: 72nd | L49: =IF(eVAL(K49)<=L$6,VLOOKUP(eVAL(K49),Multiplier,2)*eVAL(L$3),0) -> 0 | N49: 48th | O49: =IF(eVAL(N49)<=O$6,VLOOKUP(eVAL(N49),Multiplier,2)*eVAL(O$3),0) -> 188.7 | Q49: 23rd | R49: =IF(eVAL(Q49)>0,IF(eVAL(Q49)<=R$6,VLOOKUP(eVAL(Q49),Multiplier,2)*R$3,0),"") -> 359.12 | T49: 41st | U49: =IF(eVAL(T49)>0,IF(eVAL(T49)<=U$6,VLOOKUP(eVAL(T49),Multiplier,2)*eVAL(U$3),0),"") -> 276 | AI49: 38th | AJ49: =IF(eVAL(AI49)>0,IF(eVAL(AI49)<=AJ$6,VLOOKUP(eVAL(AI49),Multiplier,2)*eVAL(AJ$3),0),"") -> 0
A50: 42 | B50: CRAZE, Jamie | C50: Truro | D50: ENG | E50: 99 | F50: 696.6 | G50: 0 | H50: 0 | I50: 696.6 | J50: 1+0+0 | AI50: 16th | AJ50: =IF(eVAL(AI50)>0,IF(eVAL(AI50)<=AJ$6,VLOOKUP(eVAL(AI50),Multiplier,2)*eVAL(AJ$3),0),"") -> 696.6
A51: 43 | B51: CRUIKSHANK, Adam | C51: Wallace | D51: SCO | E51: 95 | F51: 0 | G51: 651.84 | H51: 0 | I51: 651.84 | J51: 0+2+0 | Q51: 19th | R51: =IF(eVAL(Q51)>0,IF(eVAL(Q51)<=R$6,VLOOKUP(eVAL(Q51),Multiplier,2)*R$3,0),"") -> 369.84 | T51: 39th | U51: =IF(eVAL(T51)>0,IF(eVAL(T51)<=U$6,VLOOKUP(eVAL(T51),Multiplier,2)*eVAL(U$3),0),"") -> 282
A52: 44 | B52: BERNSTEIN, Richard | C52: Millfield | D52: ENG | E52: 96 | F52: 0 | G52: 607.12 | H52: 0 | I52: 607.12 | J52: 0+2+0 | K52: 64th | L52: =IF(eVAL(K52)<=L$6,VLOOKUP(eVAL(K52),Multiplier,2)*eVAL(L$3),0) -> 234.6 | Q52: 18th | R52: =IF(eVAL(Q52)>0,IF(eVAL(Q52)<=R$6,VLOOKUP(eVAL(Q52),Multiplier,2)*R$3,0),"") -> 372.52
A53: 45 | B53: KWAN, Wai Yu | C53: Shakespeare's Swords | D53: ENG | E53: 93 | F53: 417.96 | G53: 186.48 | H53: 0 | I53: 604.44 | J53: 1+3+0 | K53: 95th | L53: =IF(eVAL(K53)<=L$6,VLOOKUP(eVAL(K53),Multiplier,2)*eVAL(L$3),0) -> 0 | N53: 49th | O53: =IF(eVAL(N53)<=O$6,VLOOKUP(eVAL(N53),Multiplier,2)*eVAL(O$3),0) -> 186.48 | Q53: 31st | R53: =IF(eVAL(Q53)>0,IF(eVAL(Q53)<=R$6,VLOOKUP(eVAL(Q53),Multiplier,2)*R$3,0),"") -> 0 | AI53: 28th | AJ53: =IF(eVAL(AI53)>0,IF(eVAL(AI53)<=AJ$6,VLOOKUP(eVAL(AI53),Multiplier,2)*eVAL(AJ$3),0),"") -> 417.96
A54: 46 | B54: LINDLEY, Thomas | C54: Rivington Park | D54: ENG | E54: 97 | F54: 421.2 | G54: 170.94 | H54: 0 | I54: 592.14 | J54: 1+2+0 | K54: 86th | L54: =IF(eVAL(K54)<=L$6,VLOOKUP(eVAL(K54),Multiplier,2)*eVAL(L$3),0) -> 0 | N54: 56th | O54: =IF(eVAL(N54)<=O$6,VLOOKUP(eVAL(N54),Multiplier,2)*eVAL(O$3),0) -> 170.94 | AI54: 27th | AJ54: =IF(eVAL(AI54)>0,IF(eVAL(AI54)<=AJ$6,VLOOKUP(eVAL(AI54),Multiplier,2)*eVAL(AJ$3),0),"") -> 421.2
A55: 47 | B55: BRAVO, Iñaki | C55: Truro | D55: SPA | E55: 98 | F55: 0 | G55: 586.08 | H55: 0 | I55: 586.08 | J55: 0+1+0 | N55: 25th | O55: =IF(eVAL(N55)<=O$6,VLOOKUP(eVAL(N55),Multiplier,2)*eVAL(O$3),0) -> 586.08
A56: 48 | B56: EDMUNDSON, Sam | C56: Kemnal Tech Coll | D56: ENG | E56: 94 | F56: 0 | G56: 568.32 | H56: 0 | I56: 568.32 | J56: 0+1+0 | N56: 29th | O56: =IF(eVAL(N56)<=O$6,VLOOKUP(eVAL(N56),Multiplier,2)*eVAL(O$3),0) -> 568.32
A57: 49 | B57: SPICER, Jonathan | C57: Sarnia Sword | D57: ENG | E57: 95 | F57: 0 | G57: 555.4 | H57: 0 | I57: 555.4 | J57: 0+3+0 | K57: 79th | L57: =IF(eVAL(K57)<=L$6,VLOOKUP(eVAL(K57),Multiplier,2)*eVAL(L$3),0) -> 0 | N57: 47th | O57: =IF(eVAL(N57)<=O$6,VLOOKUP(eVAL(N57),Multiplier,2)*eVAL(O$3),0) -> 190.92 | Q57: 21st | R57: =IF(eVAL(Q57)>0,IF(eVAL(Q57)<=R$6,VLOOKUP(eVAL(Q57),Multiplier,2)*R$3,0),"") -> 364.48
A58: 50 | B58: ESTEVES, Nuno | C58: Camden | D58: ENG | E58: 95 | F58: 0 | G58: 519 | H58: 0 | I58: 519 | J58: 0+3+0 | K58: 70th | L58: =IF(eVAL(K58)<=L$6,VLOOKUP(eVAL(K58),Multiplier,2)*eVAL(L$3),0) -> 0 | N58: 33rd | O58: =IF(eVAL(N58)<=O$6,VLOOKUP(eVAL(N58),Multiplier,2)*eVAL(O$3),0) -> 222 | T58: 34th | U58: =IF(eVAL(T58)>0,IF(eVAL(T58)<=U$6,VLOOKUP(eVAL(T58),Multiplier,2)*eVAL(U$3),0),"") -> 297
A59: 51 | B59: HUDSON, Matthew | C59: Room 1 on 1 | D59: ENG | E59: 93 | F59: 0 | G59: 512.32 | H59: 0 | I59: 512.32 | J59: 1+3+0 | K59: 45th | L59: =IF(eVAL(K59)<=L$6,VLOOKUP(eVAL(K59),Multiplier,2)*eVAL(L$3),0) -> 299.2 | N59: 37th | O59: =IF(eVAL(N59)<=O$6,VLOOKUP(eVAL(N59),Multiplier,2)*eVAL(O$3),0) -> 213.12 | Q59: 30th | R59: =IF(eVAL(Q59)>0,IF(eVAL(Q59)<=R$6,VLOOKUP(eVAL(Q59),Multiplier,2)*R$3,0),"") -> 0 | T59: 74th | U59: =IF(eVAL(T59)>0,IF(eVAL(T59)<=U$6,VLOOKUP(eVAL(T59),Multiplier,2)*eVAL(U$3),0),"") -> 0 | AI59: 42nd | AJ59: =IF(eVAL(AI59)>0,IF(eVAL(AI59)<=AJ$6,VLOOKUP(eVAL(AI59),Multiplier,2)*eVAL(AJ$3),0),"") -> 0
A60: 52 | B60: MINKLEY, Rowan | C60: Bath | D60: ENG | E60: 95 | F60: 160.38 | G60: 204.24 | H60: 0 | I60: 364.62 | J60: 1+3+0 | K60: 84th | L60: =IF(eVAL(K60)<=L$6,VLOOKUP(eVAL(K60),Multiplier,2)*eVAL(L$3),0) -> 0 | N60: 41st | O60: =IF(eVAL(N60)<=O$6,VLOOKUP(eVAL(N60),Multiplier,2)*eVAL(O$3),0) -> 204.24 | Q60: 26th | R60: =IF(eVAL(Q60)>0,IF(eVAL(Q60)<=R$6,VLOOKUP(eVAL(Q60),Multiplier,2)*R$3,0),"") -> 0 | T60: 77th | U60: =IF(eVAL(T60)>0,IF(eVAL(T60)<=U$6,VLOOKUP(eVAL(T60),Multiplier,2)*eVAL(U$3),0),"") -> 0 | AI60: 34th | AJ60: =IF(eVAL(AI60)>0,IF(eVAL(AI60)<=AJ$6,VLOOKUP(eVAL(AI60),Multiplier,2)*eVAL(AJ$3),0),"") -> 160.38
A61: 53 | B61: BOTLEY, Pelham | C61: South London Swords | D61: ENG | E61: 96 | F61: 158.76 | G61: 202.02 | H61: 0 | I61: 360.78 | J61: 1+2+0 | K61: 88th | L61: =IF(eVAL(K61)<=L$6,VLOOKUP(eVAL(K61),Multiplier,2)*eVAL(L$3),0) -> 0 | N61: 42nd | O61: =IF(eVAL(N61)<=O$6,VLOOKUP(eVAL(N61),Multiplier,2)*eVAL(O$3),0) -> 202.02 | AI61: 35th | AJ61: =IF(eVAL(AI61)>0,IF(eVAL(AI61)<=AJ$6,VLOOKUP(eVAL(AI61),Multiplier,2)*eVAL(AJ$3),0),"") -> 158.76
A62: 54 | B62: HOWES, Nicholas | C62: South London Swords | D62: ENG | E62: 98 | F62: 162 | G62: 182.04 | H62: 0 | I62: 344.04 | J62: 1+2+0 | K62: 96th | L62: =IF(eVAL(K62)<=L$6,VLOOKUP(eVAL(K62),Multiplier,2)*eVAL(L$3),0) -> 0 | N62: 51st | O62: =IF(eVAL(N62)<=O$6,VLOOKUP(eVAL(N62),Multiplier,2)*eVAL(O$3),0) -> 182.04 | AI62: 33rd | AJ62: =IF(eVAL(AI62)>0,IF(eVAL(AI62)<=AJ$6,VLOOKUP(eVAL(AI62),Multiplier,2)*eVAL(AJ$3),0),"") -> 162
A63: 55 | B63: PEARSON, Alex | C63: Salle Rollo | D63: SCO | E63: 94 | F63: 0 | G63: 312.8 | H63: 0 | I63: 312.8 | J63: 0+1+0 | K63: 41st | L63: =IF(eVAL(K63)<=L$6,VLOOKUP(eVAL(K63),Multiplier,2)*eVAL(L$3),0) -> 312.8
A64: 56 | B64: WALLIS, Jack | C64: Room One on One | D64: ENG | E64: 95 | F64: 0 | G64: 222 | H64: 0 | I64: 222 | J64: 0+3+0 | K64: 98th | L64: =IF(eVAL(K64)<=L$6,VLOOKUP(eVAL(K64),Multiplier,2)*eVAL(L$3),0) -> 0 | N64: 33rd | O64: =IF(eVAL(N64)<=O$6,VLOOKUP(eVAL(N64),Multiplier,2)*eVAL(O$3),0) -> 222 | Q64: 32nd | R64: =IF(eVAL(Q64)>0,IF(eVAL(Q64)<=R$6,VLOOKUP(eVAL(Q64),Multiplier,2)*R$3,0),"") -> 0 | T64: 92nd | U64: =IF(eVAL(T64)>0,IF(eVAL(T64)<=U$6,VLOOKUP(eVAL(T64),Multiplier,2)*eVAL(U$3),0),"") -> 0
A65: 57 | B65: BERGNE, Achille | C65: Escrime | D65: ENG | E65: 98 | F65: 0 | G65: 208.68 | H65: 0 | I65: 208.68 | J65: 0+1+0 | N65: 39th | O65: =IF(eVAL(N65)<=O$6,VLOOKUP(eVAL(N65),Multiplier,2)*eVAL(O$3),0) -> 208.68
A66: 58 | B66: HERROD, Pierse | C66: Shakespeare's Swords | D66: ENG | E66: 95 | F66: 0 | G66: 199.8 | H66: 0 | I66: 199.8 | J66: 0+3+0 | K66: 74th | L66: =IF(eVAL(K66)<=L$6,VLOOKUP(eVAL(K66),Multiplier,2)*eVAL(L$3),0) -> 0 | N66: 43rd | O66: =IF(eVAL(N66)<=O$6,VLOOKUP(eVAL(N66),Multiplier,2)*eVAL(O$3),0) -> 199.8 | Q66: 27th | R66: =IF(eVAL(Q66)>0,IF(eVAL(Q66)<=R$6,VLOOKUP(eVAL(Q66),Multiplier,2)*R$3,0),"") -> 0
A67: 59 | B67: CLOUGHLEY, Connor | C67: West Fife | D67: SCO | E67: 95 | F67: 0 | G67: 195.36 | H67: 0 | I67: 195.36 | J67: 0+2+0 | K67: 68th | L67: =IF(eVAL(K67)<=L$6,VLOOKUP(eVAL(K67),Multiplier,2)*eVAL(L$3),0) -> 0 | N67: 45th | O67: =IF(eVAL(N67)<=O$6,VLOOKUP(eVAL(N67),Multiplier,2)*eVAL(O$3),0) -> 195.36
A68: 60 | B68: REDBURN, Sam | C68: MX Fencing | D68: ENG | E68: 97 | F68: 0 | G68: 193.14 | H68: 0 | I68: 193.14 | J68: 1+2+0 | K68: 87th | L68: =IF(eVAL(K68)<=L$6,VLOOKUP(eVAL(K68),Multiplier,2)*eVAL(L$3),0) -> 0 | N68: 46th | O68: =IF(eVAL(N68)<=O$6,VLOOKUP(eVAL(N68),Multiplier,2)*eVAL(O$3),0) -> 193.14 | AI68: 37th | AJ68: =IF(eVAL(AI68)>0,IF(eVAL(AI68)<=AJ$6,VLOOKUP(eVAL(AI68),Multiplier,2)*eVAL(AJ$3),0),"") -> 0
A69: 61 | B69: LAWRENCE, Grant | C69: Bedford | D69: ENG | E69: 96 | F69: 0 | G69: 186.48 | H69: 0 | I69: 186.48 | J69: 0+2+0 | K69: 92nd | L69: =IF(eVAL(K69)<=L$6,VLOOKUP(eVAL(K69),Multiplier,2)*eVAL(L$3),0) -> 0 | N69: 49th | O69: =IF(eVAL(N69)<=O$6,VLOOKUP(eVAL(N69),Multiplier,2)*eVAL(O$3),0) -> 186.48
A70: 62 | B70: MARTINEAU, Alexis | C70: Escrime | D70: ENG | E70: 98 | F70: 0 | G70: 179.82 | H70: 0 | I70: 179.82 | J70: 0+1+0 | N70: 52nd | O70: =IF(eVAL(N70)<=O$6,VLOOKUP(eVAL(N70),Multiplier,2)*eVAL(O$3),0) -> 179.82
A71: 63 | B71: JAMES, William | C71: Ddraig Wern | D71: WAL | E71: 96 | F71: 0 | G71: 177.6 | H71: 0 | I71: 177.6 | J71: 0+2+0 | K71: 76th | L71: =IF(eVAL(K71)<=L$6,VLOOKUP(eVAL(K71),Multiplier,2)*eVAL(L$3),0) -> 0 | N71: 53rd | O71: =IF(eVAL(N71)<=O$6,VLOOKUP(eVAL(N71),Multiplier,2)*eVAL(O$3),0) -> 177.6
A72: 64 | B72: MORRESI, Matteo | C72: Escrime | D72: ENG | E72: 98 | F72: 0 | G72: 175.38 | H72: 0 | I72: 175.38 | J72: 0+1+0 | N72: 54th | O72: =IF(eVAL(N72)<=O$6,VLOOKUP(eVAL(N72),Multiplier,2)*eVAL(O$3),0) -> 175.38
A73: 65 | B73: HYDE, Matthew | C73: Strathallan | D73: SCO | E73: 98 | F73: 0 | G73: 173.16 | H73: 0 | I73: 173.16 | J73: 0+1+0 | N73: 55th | O73: =IF(eVAL(N73)<=O$6,VLOOKUP(eVAL(N73),Multiplier,2)*eVAL(O$3),0) -> 173.16
A74: 66 | B74: ALLEN, Joshua | C74: Camden | D74: ENG | E74: 96 | F74: 0 | G74: 0 | H74: 0 | I74: 0 | J74: 0+1+0 | N74: 59th | O74: =IF(eVAL(N74)<=O$6,VLOOKUP(eVAL(N74),Multiplier,2)*eVAL(O$3),0) -> 0
A75: 66 | B75: BEAZLEY, James | C75: Abingdon School | D75: ENG | E75: 97 | F75: 0 | G75: 0 | H75: 0 | I75: 0 | J75: 0+2+0 | K75: 97th | L75: =IF(eVAL(K75)<=L$6,VLOOKUP(eVAL(K75),Multiplier,2)*eVAL(L$3),0) -> 0 | N75: 70th | O75: =IF(eVAL(N75)<=O$6,VLOOKUP(eVAL(N75),Multiplier,2)*eVAL(O$3),0) -> 0
A76: 66 | B76: BRITTON, Gregory | C76: Chillwell Blades | D76: ENG | E76: 93 | F76: 0 | G76: 0 | H76: 0 | I76: 0 | J76: 0+1+0 | Q76: 29th | R76: =IF(eVAL(Q76)>0,IF(eVAL(Q76)<=R$6,VLOOKUP(eVAL(Q76),Multiplier,2)*R$3,0),"") -> 0
A77: 66 | B77: COTTAM, James | C77: Room 1 on 1 | D77: ENG | E77: 95 | F77: 0 | G77: 0 | H77: 0 | I77: 0 | J77: 0+1+0 | N77: 66th | O77: =IF(eVAL(N77)<=O$6,VLOOKUP(eVAL(N77),Multiplier,2)*eVAL(O$3),0) -> 0
A78: 66 | B78: COWELL, Matthew | C78: Bridgend | D78: WAL | E78: 98 | F78: 0 | G78: 0 | H78: 0 | I78: 0 | J78: 0+1+0 | N78: 76th | O78: =IF(eVAL(N78)<=O$6,VLOOKUP(eVAL(N78),Multiplier,2)*eVAL(O$3),0) -> 0
A79: 66 | B79: DUMONT, Ben | C79: Guernsey | D79: GGY | F79: 0 | G79: 0 | H79: 0 | I79: 0 | J79: 0+1+0 | N79: 67th | O79: =IF(eVAL(N79)<=O$6,VLOOKUP(eVAL(N79),Multiplier,2)*eVAL(O$3),0) -> 0
A80: 66 | B80: FLORENCE, Isaac | C80: Ddraig Wern | D80: WAL | E80: 97 | F80: 0 | G80: 0 | H80: 0 | I80: 0 | J80: 1+1+0 | N80: 62nd | O80: =IF(eVAL(N80)<=O$6,VLOOKUP(eVAL(N80),Multiplier,2)*eVAL(O$3),0) -> 0 | AI80: 41st | AJ80: =IF(eVAL(AI80)>0,IF(eVAL(AI80)<=AJ$6,VLOOKUP(eVAL(AI80),Multiplier,2)*eVAL(AJ$3),0),"") -> 0
A81: 66 | B81: FOTHERBY James | C81: Abingdon School | D81: ENG | E81: 97 | F81: 0 | G81: 0 | H81: 0 | I81: 0 | J81: 0+2+0 | K81: 105th | L81: =IF(eVAL(K81)<=L$6,VLOOKUP(eVAL(K81),Multiplier,2)*eVAL(L$3),0) -> 0 | N81: 74th | O81: =IF(eVAL(N81)<=O$6,VLOOKUP(eVAL(N81),Multiplier,2)*eVAL(O$3),0) -> 0
A82: 66 | B82: HAWKINS, Philip | C82: Brentwood School | D82: ENG | E82: 96 | F82: 0 | G82: 0 | H82: 0 | I82: 0 | J82: 0+1+0 | N82: 65th | O82: =IF(eVAL(N82)<=O$6,VLOOKUP(eVAL(N82),Multiplier,2)*eVAL(O$3),0) -> 0
A83: 66 | B83: HUNTER, Matthew | C83: Shakespeare's Swords | D83: ENG | E83: 96 | F83: 0 | G83: 0 | H83: 0 | I83: 0 | J83: 0+2+0 | K83: 94th | L83: =IF(eVAL(K83)<=L$6,VLOOKUP(eVAL(K83),Multiplier,2)*eVAL(L$3),0) -> 0 | N83: 68th | O83: =IF(eVAL(N83)<=O$6,VLOOKUP(eVAL(N83),Multiplier,2)*eVAL(O$3),0) -> 0
A84: 66 | B84: JENSEN, Adam | C84: Brentwood School | D84: ENG | E84: 96 | F84: 0 | G84: 0 | H84: 0 | I84: 0 | J84: 0+1+0 | N84: 58th | O84: =IF(eVAL(N84)<=O$6,VLOOKUP(eVAL(N84),Multiplier,2)*eVAL(O$3),0) -> 0
A85: 66 | B85: JONES, Dylan | C85: Vale | D85: ENG | E85: 98 | F85: 0 | G85: 0 | H85: 0 | I85: 0 | J85: 0+2+0 | K85: 104th | L85: =IF(eVAL(K85)<=L$6,VLOOKUP(eVAL(K85),Multiplier,2)*eVAL(L$3),0) -> 0 | N85: 77th | O85: =IF(eVAL(N85)<=O$6,VLOOKUP(eVAL(N85),Multiplier,2)*eVAL(O$3),0) -> 0
A86: 66 | B86: LINDSAY, Christian | C86: Escrime | D86: ENG | E86: 98 | F86: 0 | G86: 0 | H86: 0 | I86: 0 | J86: 0+1+0 | N86: 64th | O86: =IF(eVAL(N86)<=O$6,VLOOKUP(eVAL(N86),Multiplier,2)*eVAL(O$3),0) -> 0
A87: 66 | B87: MANSON, Ross | C87: Wallace Fencing | D87: SCO | E87: 97 | F87: 0 | G87: 0 | H87: 0 | I87: 0 | J87: 0+3+0 | K87: 84th | L87: =IF(eVAL(K87)<=L$6,VLOOKUP(eVAL(K87),Multiplier,2)*eVAL(L$3),0) -> 0 | N87: 72nd | O87: =IF(eVAL(N87)<=O$6,VLOOKUP(eVAL(N87),Multiplier,2)*eVAL(O$3),0) -> 0 | Q87: 28th | R87: =IF(eVAL(Q87)>0,IF(eVAL(Q87)<=R$6,VLOOKUP(eVAL(Q87),Multiplier,2)*R$3,0),"") -> 0 | T87: 76th | U87: =IF(eVAL(T87)>0,IF(eVAL(T87)<=U$6,VLOOKUP(eVAL(T87),Multiplier,2)*eVAL(U$3),0),"") -> 0
A88: 66 | B88: MOORE, Christopher | C88: Shakespeare's Swords | D88: ENG | E88: 96 | F88: 0 | G88: 0 | H88: 0 | I88: 0 | J88: 0+1+0 | K88: 91st | L88: =IF(eVAL(K88)<=L$6,VLOOKUP(eVAL(K88),Multiplier,2)*eVAL(L$3),0) -> 0
A89: 66 | B89: NELSON, Jordan | C89: South London Swords | D89: ENG | E89: 96 | F89: 0 | G89: 0 | H89: 0 | I89: 0 | J89: 0+1+0 | N89: 60th | O89: =IF(eVAL(N89)<=O$6,VLOOKUP(eVAL(N89),Multiplier,2)*eVAL(O$3),0) -> 0
A90: 66 | B90: RAY, Daniel | C90: Guernsey | D90: GGY | E90: 98 | F90: 0 | G90: 0 | H90: 0 | I90: 0 | J90: 0+1+0 | N90: 72nd | O90: =IF(eVAL(N90)<=O$6,VLOOKUP(eVAL(N90),Multiplier,2)*eVAL(O$3),0) -> 0
A91: 66 | B91: ROONEY, Samuel | C91: Escrime | D91: ENG | E91: 99 | F91: 0 | G91: 0 | H91: 0 | I91: 0 | J91: 0+1+0 | N91: 63rd | O91: =IF(eVAL(N91)<=O$6,VLOOKUP(eVAL(N91),Multiplier,2)*eVAL(O$3),0) -> 0
A92: 66 | B92: RUSSEN, Matthew | C92: Brentwood School | D92: ENG | E92: 96 | F92: 0 | G92: 0 | H92: 0 | I92: 0 | J92: 0+1+0 | N92: 61st | O92: =IF(eVAL(N92)<=O$6,VLOOKUP(eVAL(N92),Multiplier,2)*eVAL(O$3),0) -> 0
A93: 66 | B93: VIGAR, Harry | C93: Millfield | D93: ENG | E93: 98 | F93: 0 | G93: 0 | H93: 0 | I93: 0 | J93: 1+1+0 | Q93: 33rd | R93: =IF(eVAL(Q93)>0,IF(eVAL(Q93)<=R$6,VLOOKUP(eVAL(Q93),Multiplier,2)*R$3,0),"") -> 0 | AI93: 47th | AJ93: =IF(eVAL(AI93)>0,IF(eVAL(AI93)<=AJ$6,VLOOKUP(eVAL(AI93),Multiplier,2)*eVAL(AJ$3),0),"") -> 0
A94: 66 | B94: WALLACE, Greg | C94: Bedford | D94: ENG | E94: 94 | F94: 0 | G94: 0 | H94: 0 | I94: 0 | J94: 0+1+0 | N94: 71st | O94: =IF(eVAL(N94)<=O$6,VLOOKUP(eVAL(N94),Multiplier,2)*eVAL(O$3),0) -> 0
A95: 66 | B95: WATSON, Caleb | C95: South London Swords | D95: ENG | E95: 98 | F95: 0 | G95: 0 | H95: 0 | I95: 0 | J95: 0+1+0 | N95: 75th | O95: =IF(eVAL(N95)<=O$6,VLOOKUP(eVAL(N95),Multiplier,2)*eVAL(O$3),0) -> 0
A96: 66 | B96: WILSON, Calum | C96: Shakespeare's Swords | D96: WAL | E96: 94 | F96: 0 | G96: 0 | H96: 0 | I96: 0 | J96: 1+1+0 | K96: 99th | L96: =IF(eVAL(K96)<=L$6,VLOOKUP(eVAL(K96),Multiplier,2)*eVAL(L$3),0) -> 0 | AI96: 40th | AJ96: =IF(eVAL(AI96)>0,IF(eVAL(AI96)<=AJ$6,VLOOKUP(eVAL(AI96),Multiplier,2)*eVAL(AJ$3),0),"") -> 0
A97: 66 | B97: JEANES, Christopher | C97: UCL | F97: 0 | G97: 0 | H97: 0 | I97: 0 | J97: 1+0+0 | AI97: 39th | AJ97: =IF(eVAL(AI97)>0,IF(eVAL(AI97)<=AJ$6,VLOOKUP(eVAL(AI97),Multiplier,2)*eVAL(AJ$3),0),"") -> 0
A98: 66 | B98: HUNKIN, Samuel | C98: Truro | D98: ENG | E98: 98 | F98: 0 | G98: 0 | H98: 0 | I98: 0 | J98: 1+0+0 | AI98: 43rd | AJ98: =IF(eVAL(AI98)>0,IF(eVAL(AI98)<=AJ$6,VLOOKUP(eVAL(AI98),Multiplier,2)*eVAL(AJ$3),0),"") -> 0
A99: 66 | B99: BOOTE, Alexander | C99: Truro | D99: ENG | E99: 99 | F99: 0 | G99: 0 | H99: 0 | I99: 0 | J99: 1+0+0 | AI99: 43rd | AJ99: =IF(eVAL(AI99)>0,IF(eVAL(AI99)<=AJ$6,VLOOKUP(eVAL(AI99),Multiplier,2)*eVAL(AJ$3),0),"") -> 0
A100: 66 | B100: MIDDLEMORE, Louis | C100: Bristol | F100: 0 | G100: 0 | H100: 0 | I100: 0 | J100: 1+0+0 | AI100: 43rd | AJ100: =IF(eVAL(AI100)>0,IF(eVAL(AI100)<=AJ$6,VLOOKUP(eVAL(AI100),Multiplier,2)*eVAL(AJ$3),0),"") -> 0
A101: 66 | B101: LOVEDAY, Emile | C101: Escrime Academy | D101: ENG | E101: 98 | F101: 0 | G101: 0 | H101: 0 | I101: 0 | J101: 1+0+0 | AI101: 46th | AJ101: =IF(eVAL(AI101)>0,IF(eVAL(AI101)<=AJ$6,VLOOKUP(eVAL(AI101),Multiplier,2)*eVAL(AJ$3),0),"") -> 0
A102: 999 | B102: AHEARNE, Niall | C102: Espada | D102: ENG | E102: 94 | F102: 0 | G102: 0 | H102: 0 | I102: 0 | J102: 0+0+0
A103: 999 | B103: ARTESI, Fabio | C103: Camden | D103: ENG | E103: 94 | F103: 0 | G103: 0 | H103: 0 | I103: 0 | J103: 0+0+0
A104: 999 | B104: ARTESI, Gianfranco | C104: Camden | D104: ENG | E104: 94 | F104: 0 | G104: 0 | H104: 0 | I104: 0 | J104: 0+0+0
A105: 999 | B105: AU, Jordon | C105: Espada | D105: ENG | E105: 94 | F105: 0 | G105: 0 | H105: 0 | I105: 0 | J105: 0+0+0
A106: 999 | B106: AUBERT, Miles | C106: Brentwood | D106: ENG | E106: 94 | F106: 0 | G106: 0 | H106: 0 | I106: 0 | J106: 0+0+0
A107: 999 | B107: BEELEY, Jacques | C107: Ashtom Thameside | D107: ENG | E107: 95 | F107: 0 | G107: 0 | H107: 0 | I107: 0 | J107: 0+0+0
A108: 999 | B108: BLAYLOCK, Christopher | C108: Camden | D108: ENG | E108: 95 | F108: 0 | G108: 0 | H108: 0 | I108: 0 | J108: 0+0+0
A109: 999 | B109: BOUGOURD, Joshua | C109: Salle 101 | D109: ENG | E109: 93 | F109: 0 | G109: 0 | H109: 0 | I109: 0 | J109: 0+0+0
A110: 999 | B110: BOYCOTT-OWEN, Mason | C110: Skipton | D110: ENG | E110: 95 | F110: 0 | G110: 0 | H110: 0 | I110: 0 | J110: 0+0+0
A111: 999 | B111: BROWN, Alex | C111: Brentwood | D111: ENG | E111: 93 | F111: 0 | G111: 0 | H111: 0 | I111: 0 | J111: 0+0+0
A112: 999 | B112: BUSHELL, Harry | C112: Truro | D112: ENG | E112: 95 | F112: 0 | G112: 0 | H112: 0 | I112: 0 | J112: 0+0+0
A113: 999 | B113: BYRNE, Kieran | C113: Tameside Sabre | D113: ENG | E113: 94 | F113: 0 | G113: 0 | H113: 0 | I113: 0 | J113: 0+0+0
A114: 999 | B114: CAVACIUTI, Nicholas | C114: Shakespeare's Swords | D114: ENG | E114: 94 | F114: 0 | G114: 0 | H114: 0 | I114: 0 | J114: 0+0+0
A115: 999 | B115: CONNOLLY, David | C115: Foyle & Londonderry | D115: NIR | E115: 94 | F115: 0 | G115: 0 | H115: 0 | I115: 0 | J115: 0+0+0
A116: 999 | B116: CRAIG, Douglas | C116: Room 1 on 1 | D116: ENG | E116: 95 | F116: 0 | G116: 0 | H116: 0 | I116: 0 | J116: 0+0+0
A117: 999 | B117: DAULMAN, Harry | C117: MX | D117: ENG | E117: 95 | F117: 0 | G117: 0 | H117: 0 | I117: 0 | J117: 0+0+0
A118: 999 | B118: DE LANDRO, Mario | C118: Edinburgh FC | D118: SCO | E118: 94 | F118: 0 | G118: 0 | H118: 0 | I118: 0 | J118: 0+0+0
A119: 999 | B119: DUGGAN, Matthew | C119: Cressy | D119: ENG | E119: 95 | F119: 0 | G119: 0 | H119: 0 | I119: 0 | J119: 0+0+0
A120: 999 | B120: DUNTON, Andrew | C120: Edinburgh | D120: SCO | E120: 93 | F120: 0 | G120: 0 | H120: 0 | I120: 0 | J120: 0+0+0
A121: 999 | B121: DZITKO, Michal | C121: Bedford | D121: ENG | E121: 95 | F121: 0 | G121: 0 | H121: 0 | I121: 0 | J121: 0+0+0
A122: 999 | B122: FIRTH, James | C122: Room 101 | D122: ENG | E122: 94 | F122: 0 | G122: 0 | H122: 0 | I122: 0 | J122: 0+0+0
A123: 999 | B123: HAGGETT, Jordan | C123: Bakewell | D123: ENG | E123: 95 | F123: 0 | G123: 0 | H123: 0 | I123: 0 | J123: 0+0+0
A124: 999 | B124: HERING, Michael | C124: NLSC | D124: SCO | E124: 93 | F124: 0 | G124: 0 | H124: 0 | I124: 0 | J124: 0+0+0
A125: 999 | B125: HOUGH, Rory | C125: Room 1 on 1 | D125: ENG | E125: 95 | F125: 0 | G125: 0 | H125: 0 | I125: 0 | J125: 0+0+0
A126: 999 | B126: HUMFRESS, Alex | C126: Shakespeare's Swords | D126: ENG | E126: 93 | F126: 0 | G126: 0 | H126: 0 | I126: 0 | J126: 0+0+0
A127: 999 | B127: KAR, Hamza | C127: Foyle & Londonderry | D127: NIR | E127: 94 | F127: 0 | G127: 0 | H127: 0 | I127: 0 | J127: 0+0+0
A128: 999 | B128: KENNOWAY, James | C128: Millfield | D128: ENG | E128: 95 | F128: 0 | G128: 0 | H128: 0 | I128: 0 | J128: 0+0+0
A129: 999 | B129: KEOGAN, Jack | C129: Banbury | D129: ENG | E129: 94 | F129: 0 | G129: 0 | H129: 0 | I129: 0 | J129: 0+0+0
A130: 999 | B130: KIM, Edward | C130: MX Fencing | D130: ENG | E130: 94 | F130: 0 | G130: 0 | H130: 0 | I130: 0 | J130: 0+0+0
A131: 999 | B131: LONDON, James | C131: Bolton | D131: ENG | E131: 94 | F131: 0 | G131: 0 | H131: 0 | I131: 0 | J131: 0+0+0
A132: 999 | B132: MAGEE, Richard | C132: Foyle & Londonderry | D132: NIR | E132: 95 | F132: 0 | G132: 0 | H132: 0 | I132: 0 | J132: 0+0+0
A133: 999 | B133: MCCOURT, Michael | C133: Wallace Fencing | D133: SCO | E133: 94 | F133: 0 | G133: 0 | H133: 0 | I133: 0 | J133: 0+0+0
A134: 999 | B134: MCGUCKIN, Ben | C134: Lazlos | D134: ENG | E134: 95 | F134: 0 | G134: 0 | H134: 0 | I134: 0 | J134: 0+0+0
A135: 999 | B135: MCLEOD, Michael | C135: Taunton | D135: ENG | E135: 93 | F135: 0 | G135: 0 | H135: 0 | I135: 0 | J135: 0+0+0
A136: 999 | B136: MCPHERSON, Robert | C136: Truro | D136: ENG | E136: 94 | F136: 0 | G136: 0 | H136: 0 | I136: 0 | J136: 0+0+0
A137: 999 | B137: MILLER, Harry | C137: Salle 101 | D137: ENG | E137: 93 | F137: 0 | G137: 0 | H137: 0 | I137: 0 | J137: 0+0+0
A138: 999 | B138: MILNER, Luke | C138: Sarnia Sword | D138: ENG | E138: 94 | F138: 0 | G138: 0 | H138: 0 | I138: 0 | J138: 0+0+0
A139: 999 | B139: MORRIS, Sam | C139: Hymers College | D139: ENG | E139: 94 | F139: 0 | G139: 0 | H139: 0 | I139: 0 | J139: 0+0+0
A140: 999 | B140: MOUNTFORD, Jo | C140: Riding Sabre | D140: ENG | E140: 93 | F140: 0 | G140: 0 | H140: 0 | I140: 0 | J140: 0+0+0
A141: 999 | B141: PEARSON, Chris | C141: Salle Rollo | D141: SCO | E141: 97 | F141: 0 | G141: 0 | H141: 0 | I141: 0 | J141: 0+0+0
A142: 999 | B142: PENCHEV, Daniel | C142: City | D142: ENG | E142: 95 | F142: 0 | G142: 0 | H142: 0 | I142: 0 | J142: 0+0+0
A143: 999 | B143: POTTER, James (CADS) | C143: CADS | D143: ENG | E143: 94 | F143: 0 | G143: 0 | H143: 0 | I143: 0 | J143: 0+0+0
A144: 999 | B144: QUIGLEY, Barry | C144: Foyle & Londonderry | D144: NIR | E144: 94 | F144: 0 | G144: 0 | H144: 0 | I144: 0 | J144: 0+0+0
A145: 999 | B145: RADLEY, Edmund | D145: ENG | E145: 95 | F145: 0 | G145: 0 | H145: 0 | I145: 0 | J145: 0+0+0
A146: 999 | B146: RAMSAY, Waldo | C146: Camden | D146: ENG | E146: 94 | F146: 0 | G146: 0 | H146: 0 | I146: 0 | J146: 0+0+0
A147: 999 | B147: REID, Adam | C147: Foyle & Londonderry | D147: NIR | E147: 95 | F147: 0 | G147: 0 | H147: 0 | I147: 0 | J147: 0+0+0
A148: 999 | B148: REID, Laurence | C148: NLSC | D148: ENG | E148: 93 | F148: 0 | G148: 0 | H148: 0 | I148: 0 | J148: 0+0+0
A149: 999 | B149: ROBERTS, Rupert | D149: ENG | E149: 94 | F149: 0 | G149: 0 | H149: 0 | I149: 0 | J149: 0+0+0
A150: 999 | B150: ROBINSON, Phil | C150: Brentwood | D150: ENG | E150: 93 | F150: 0 | G150: 0 | H150: 0 | I150: 0 | J150: 0+0+0
A151: 999 | B151: ROGERSON, Noah | C151: Truro | D151: ENG | E151: 95 | F151: 0 | G151: 0 | H151: 0 | I151: 0 | J151: 0+0+0
A152: 999 | B152: SEDDON, Daniel | C152: MX Fencing | D152: ENG | E152: 93 | F152: 0 | G152: 0 | H152: 0 | I152: 0 | J152: 0+0+0
A153: 999 | B153: SIMMONS, Peter | C153: Shakespeare's Swords | D153: ENG | E153: 96 | F153: 0 | G153: 0 | H153: 0 | I153: 0 | J153: 0+0+0
A154: 999 | B154: SIMPSON, Jamie | C154: Stockport | D154: NIR | E154: 94 | F154: 0 | G154: 0 | H154: 0 | I154: 0 | J154: 0+0+0
A155: 999 | B155: SLATTER-TOUBAS, Marix | C155: Rivington Park | D155: ENG | E155: 95 | F155: 0 | G155: 0 | H155: 0 | I155: 0 | J155: 0+0+0
A156: 999 | B156: SLINGSBY-SMITH, Zachary | C156: Taunton Blades | D156: ENG | E156: 93 | F156: 0 | G156: 0 | H156: 0 | I156: 0 | J156: 0+0+0
A157: 999 | B157: SPOOR, Josh | C157: Camden | D157: ENG | E157: 95 | F157: 0 | G157: 0 | H157: 0 | I157: 0 | J157: 0+0+0
A158: 999 | B158: TAI, Ho-Fung | C158: Bedford | D158: ENG | E158: 93 | F158: 0 | G158: 0 | H158: 0 | I158: 0 | J158: 0+0+0
A159: 999 | B159: THURSTON, Freddy | C159: Eton | D159: ENG | E159: 95 | F159: 0 | G159: 0 | H159: 0 | I159: 0 | J159: 0+0+0
A160: 999 | B160: URIBE, Rapael | C160: MX Fencing Club | D160: ENG | E160: 95 | F160: 0 | G160: 0 | H160: 0 | I160: 0 | J160: 0+0+0
A161: 999 | B161: VANOFFLEN, Carl | C161: unattached | D161: ENG | E161: 93 | F161: 0 | G161: 0 | H161: 0 | I161: 0 | J161: 0+0+0
A162: 999 | B162: WALKER, Henry | C162: Truro | D162: ENG | E162: 93 | F162: 0 | G162: 0 | H162: 0 | I162: 0 | J162: 0+0+0
A163: 999 | B163: WEBB, William | C163: Lazlos | D163: ENG | E163: 95 | F163: 0 | G163: 0 | H163: 0 | I163: 0 | J163: 0+0+0
A164: 999 | B164: WHITTLE, Magnus | C164: Shakespeare's Swords | D164: ENG | E164: 95 | F164: 0 | G164: 0 | H164: 0 | I164: 0 | J164: 0+0+0
A165: 999 | B165: WILLIAMS, Barnabas | C165: Salle 101 | D165: ENG | E165: 93 | F165: 0 | G165: 0 | H165: 0 | I165: 0 | J165: 0+0+0
A166: 999 | B166: WILLIAMS, Griff | C166: Millfield | D166: WAL | E166: 94 | F166: 0 | G166: 0 | H166: 0 | I166: 0 | J166: 0+0+0
A167: 999 | B167: WOODS, Henry | C167: Eton | D167: ENG | E167: 95 | F167: 0 | G167: 0 | H167: 0 | I167: 0 | J167: 0+0+0

Sheet 2012-13F
K1: Hamlet Open Sabre | N1: Bedford Junior | P1: Selection Date - Sosnowiec | Q1: Gateshead | S1: Selection Date - Dormagen, Lignano | T1: Welsh Open | W1: Sosnowiec WC, POL | Y1: Selection Date - Dourdan | Z1: Dormagen WC, GER | AC1: Udine WC, ITA | AE1: Selection Date - European Championships | AF1: Dourdan WC, FRA | AI1: U20 National Championships, Gillingham | AK1: Selection Date - World Championships European Championships Team Preparation Day | AL1: European Championships, Budapest, HUN | AN1: World Championships Team Preparation Day | AO1: World Championships, Porec, HRV
B2: 12 Apr 13 | K2: 01/09/2012 | N2: 22/09/2012 | P2: 23/09/2012 | Q2: 13/10/2012 | S2: 14/10/2012 | T2: 10/11/2012 | W2: 17/11/2012 | Y2: 18/11/2012 | Z2: 01/12/2012 | AC2: 04/01/2013 | AE2: 08/01/2013 | AF2: 19/01/2013 | AI2: 10/02/2013 | AK2: 10/02/2013 17/02/2013 | AL2: 05-09/03/2013 | AN2: 17/03/2013 | AO2: 02-07/04/2013
J3: NIF | L3: 112 (56*2) | O3: 81 | R3: 58 | U3: 126 (63*2) | X3: 1370 (137*10) | AA3: 1520 (152*10) | AD3: 1110 (111*10) | AG3: 1140 (114*10) | AJ3: 69 | AM3: 1160 (116*10) | AP3: 1380(138*10)
J4: CompType | L4: dom | O4: dom | R4: dom | U4: dom | X4: int | AA4: int | AD4: int | AG4: int | AJ4: nat | AM4: int | AP4: int
J5: Entries | L5: 61 | O5: 29 | R5: 15 | U5: 46 | X5: 112 | AA5: 133 | AD5: 98 | AG5: 87 | AJ5: 22 | AM5: 46 | AP5: 86
J6: Cutoff | L6: 42 | O6: 21 | R6: 11 | U6: 34 | X6: 56 | AA6: 64 | AD6: =AD5*0.5 -> 49 | AG6: 43 | AJ6: 16 | AM6: 23 | AP6: 43
A8: Rank | B8: Name | C8: Club | D8: HC | E8: Year | F8: Nats | G8: Dom | H8: Int | I8: Total | J8: Nt+Dm+In
A9: 1 | B9: ITZKOWITZ, Aliya | C9: Camden | D9: ENG | E9: 94 | F9: 0 | G9: 0 | H9: 31789.2 | I9: 31789.2 | J9: 0+0+3 | L9: =IF(eVAL(K9)>0,IF(eVAL(K9)<=$L$6,VLOOKUP(eVAL(K9),Multiplier,2)*112,0),"") ->  | W9: 41st | X9: [2520.80] | AC9: 12th | AD9: =IF(eVAL(AC9)>0,IF(eVAL(AC9)<=AD$6,VLOOKUP(eVAL(AC9),Multiplier,2)*eVAL(AD$3),0),"") -> 9723.6 | AF9: 11th | AG9: =IF(eVAL(AF9)>0,IF(eVAL(AF9)<=AG$6,VLOOKUP(eVAL(AF9),Multiplier,2)*eVAL(AG$3),0),"") -> 10032 | AO9: 13th | AP9: =IF(eVAL(AO9)>0,IF(eVAL(AO9)<=AP$6,VLOOKUP(eVAL(AO9),Multiplier,2)*eVAL(AP$3),0),"") -> 12033.6
A10: 2 | B10: RUAUX, Emily | C10: Rivington Park | D10: ENG | E10: 95 | F10: 1242 | G10: 3703.2 | H10: 2109 | I10: 7054.2 | J10: 1+3+3 | K10: 9th | L10: =IF(eVAL(K10)>0,IF(eVAL(K10)<=$L$6,VLOOKUP(eVAL(K10),Multiplier,2)*112,0),"") -> 994.56 | N10: 1st | O10: =IF(eVAL(N10)>0,IF(eVAL(N10)<=$O$6,VLOOKUP(eVAL(N10),Multiplier,2)*O$3,0),"") -> 1620 | Q10: 6th | R10: [751.68] | T10: 15th | U10: =IF(eVAL(T10)>0,IF(eVAL(T10)<=U$6,VLOOKUP(eVAL(T10),Multiplier,2)*126,0),"") -> 1088.64 | W10: 96th | X10: 0 | Z10: 96th | AA10: 0 | AC10: 38th | AD10: =IF(eVAL(AC10)>0,IF(eVAL(AC10)<=AD$6,VLOOKUP(eVAL(AC10),Multiplier,2)*eVAL(AD$3),0),"") -> 2109 | AI10: 2nd | AJ10: =IF(eVAL(AI10)>0,IF(eVAL(AI10)<=AJ$6,VLOOKUP(eVAL(AI10),Multiplier,2)*eVAL(AJ$3),0),"") -> 1242
A11: 3 | B11: RUSHTON, Francesca | C11: Shakespeares | D11: ENG | E11: 94 | F11: 1104 | G11: 2610.96 | H11: 2280 | I11: 5994.96 | J11: 1+3+3 | K11: 13th | L11: =IF(eVAL(K11)>0,IF(eVAL(K11)<=$L$6,VLOOKUP(eVAL(K11),Multiplier,2)*112,0),"") -> 976.64 | N11: 13th | O11: =IF(eVAL(N11)>0,IF(eVAL(N11)<=$O$6,VLOOKUP(eVAL(N11),Multiplier,2)*O$3,0),"") -> 706.32 | Q11: 3rd | R11: =IF(eVAL(Q11)>0,IF(eVAL(Q11)<=R$6,VLOOKUP(eVAL(Q11),Multiplier,2)*R$3,0),"") -> 928 | T11: 22nd | U11: [680.40] | W11: 110th | X11: 0 | Z11: 122nd | AA11: 0 | AC11: 85th | AD11: =IF(eVAL(AC11)>0,IF(eVAL(AC11)<=AD$6,VLOOKUP(eVAL(AC11),Multiplier,2)*eVAL(AD$3),0),"") -> 0 | AF11: 33rd | AG11: =IF(eVAL(AF11)>0,IF(eVAL(AF11)<=AG$6,VLOOKUP(eVAL(AF11),Multiplier,2)*eVAL(AG$3),0),"") -> 2280 | AI11: 3rd | AJ11: =IF(eVAL(AI11)>0,IF(eVAL(AI11)<=AJ$6,VLOOKUP(eVAL(AI11),Multiplier,2)*eVAL(AJ$3),0),"") -> 1104
A12: 4 | B12: DIXON, Harriet | C12: Millfield | D12: WAL | E12: 94 | F12: 0 | G12: 5182 | H12: 0 | I12: 5182 | J12: 0+3+3 | K12: 5th | L12: =IF(eVAL(K12)>0,IF(eVAL(K12)<=$L$6,VLOOKUP(eVAL(K12),Multiplier,2)*112,0),"") -> 1456 | N12: 2nd | O12: =IF(eVAL(N12)>0,IF(eVAL(N12)<=$O$6,VLOOKUP(eVAL(N12),Multiplier,2)*O$3,0),"") -> 1458 | Q12: 1st | R12: [1160.00] | T12: 2nd | U12: =IF(eVAL(T12)>0,IF(eVAL(T12)<=U$6,VLOOKUP(eVAL(T12),Multiplier,2)*126,0),"") -> 2268 | W12: 94th | X12: 0 | Z12: 106th | AA12: 0 | AC12: 96th | AD12: =IF(eVAL(AC12)>0,IF(eVAL(AC12)<=AD$6,VLOOKUP(eVAL(AC12),Multiplier,2)*eVAL(AD$3),0),"") -> 0 | AJ12: =IF(eVAL(AI12)>0,IF(eVAL(AI12)<=AJ$6,VLOOKUP(eVAL(AI12),Multiplier,2)*eVAL(AJ$3),0),"") -> 
A13: 5 | B13: GLADDISH, Laura | C13: MX Fencing | D13: ENG | E13: 97 | F13: 1380 | G13: 2943.52 | H13: 0 | I13: 4323.52 | J13: 1+3+0 | K13: 14th | L13: =IF(eVAL(K13)>0,IF(eVAL(K13)<=$L$6,VLOOKUP(eVAL(K13),Multiplier,2)*112,0),"") -> 972.16 | N13: 3rd | O13: =IF(eVAL(N13)>0,IF(eVAL(N13)<=$O$6,VLOOKUP(eVAL(N13),Multiplier,2)*O$3,0),"") -> 1296 | R13: =IF(eVAL(Q13)>0,IF(eVAL(Q13)<=R$6,VLOOKUP(eVAL(Q13),Multiplier,2)*R$3,0),"") ->  | T13: 23rd | U13: =IF(eVAL(T13)>0,IF(eVAL(T13)<=U$6,VLOOKUP(eVAL(T13),Multiplier,2)*126,0),"") -> 675.36 | AI13: 1st | AJ13: =IF(eVAL(AI13)>0,IF(eVAL(AI13)<=AJ$6,VLOOKUP(eVAL(AI13),Multiplier,2)*eVAL(AJ$3),0),"") -> 1380
A14: 6 | B14: DAYKIN, Kate | C14: West Fife | D14: SCO | E14: 96 | F14: 888.72 | G14: 3106.24 | H14: 0 | I14: 3994.96 | J14: 1+3+0 | K14: 34th | L14: [221.76] | N14: 9th | O14: =IF(eVAL(N14)>0,IF(eVAL(N14)<=$O$6,VLOOKUP(eVAL(N14),Multiplier,2)*O$3,0),"") -> 719.28 | Q14: 5th | R14: =IF(eVAL(Q14)>0,IF(eVAL(Q14)<=R$6,VLOOKUP(eVAL(Q14),Multiplier,2)*R$3,0),"") -> 754 | T14: 6th | U14: =IF(eVAL(T14)>0,IF(eVAL(T14)<=U$6,VLOOKUP(eVAL(T14),Multiplier,2)*126,0),"") -> 1632.96 | AI14: 8th | AJ14: =IF(eVAL(AI14)>0,IF(eVAL(AI14)<=AJ$6,VLOOKUP(eVAL(AI14),Multiplier,2)*eVAL(AJ$3),0),"") -> 888.72
A15: 7 | B15: ANIL, Shreya | C15: Camden | D15: ENG | E15: 98 | F15: 891.48 | G15: 2760 | H15: 0 | I15: 3651.48 | J15: 1+3+0 | K15: 16th | L15: =IF(eVAL(K15)>0,IF(eVAL(K15)<=$L$6,VLOOKUP(eVAL(K15),Multiplier,2)*112,0),"") -> 963.2 | N15: 6th | O15: =IF(eVAL(N15)>0,IF(eVAL(N15)<=$O$6,VLOOKUP(eVAL(N15),Multiplier,2)*O$3,0),"") -> 1049.76 | Q15: 8th | R15: =IF(eVAL(Q15)>0,IF(eVAL(Q15)<=R$6,VLOOKUP(eVAL(Q15),Multiplier,2)*R$3,0),"") -> 747.04 | U15: =IF(eVAL(T15)>0,IF(eVAL(T15)<=U$6,VLOOKUP(eVAL(T15),Multiplier,2)*126,0),"") ->  | AI15: 7th | AJ15: =IF(eVAL(AI15)>0,IF(eVAL(AI15)<=AJ$6,VLOOKUP(eVAL(AI15),Multiplier,2)*eVAL(AJ$3),0),"") -> 891.48
A16: 8 | B16: MAIDWELL-SMITH, Alice | C16: Truro | D16: ENG | E16: 94 | F16: 894.24 | G16: 2557.28 | H16: 0 | I16: 3451.52 | J16: 1+3+3 | K16: 36th | L16: =IF(eVAL(K16)>0,IF(eVAL(K16)<=$L$6,VLOOKUP(eVAL(K16),Multiplier,2)*112,0),"") -> 217.28 | N16: 3rd | O16: =IF(eVAL(N16)>0,IF(eVAL(N16)<=$O$6,VLOOKUP(eVAL(N16),Multiplier,2)*O$3,0),"") -> 1296 | Q16: 2nd | R16: =IF(eVAL(Q16)>0,IF(eVAL(Q16)<=R$6,VLOOKUP(eVAL(Q16),Multiplier,2)*R$3,0),"") -> 1044 | U16: =IF(eVAL(T16)>0,IF(eVAL(T16)<=U$6,VLOOKUP(eVAL(T16),Multiplier,2)*126,0),"") ->  | W16: 105th | X16: 0 | Z16: 105th | AA16: 0 | AC16: 77th | AD16: =IF(eVAL(AC16)>0,IF(eVAL(AC16)<=AD$6,VLOOKUP(eVAL(AC16),Multiplier,2)*eVAL(AD$3),0),"") -> 0 | AI16: 6th | AJ16: =IF(eVAL(AI16)>0,IF(eVAL(AI16)<=AJ$6,VLOOKUP(eVAL(AI16),Multiplier,2)*eVAL(AJ$3),0),"") -> 894.24
A17: 9 | B17: BEDDOE, Megan | C17: MX Fencing | D17: ENG | E17: 95 | F17: 897 | G17: 2331.28 | H17: 0 | I17: 3228.28 | J17: 1+3+3 | K17: 18th | L17: [622.72] | N17: 11th | O17: =IF(eVAL(N17)>0,IF(eVAL(N17)<=$O$6,VLOOKUP(eVAL(N17),Multiplier,2)*O$3,0),"") -> 712.8 | Q17: 3rd | R17: =IF(eVAL(Q17)>0,IF(eVAL(Q17)<=R$6,VLOOKUP(eVAL(Q17),Multiplier,2)*R$3,0),"") -> 928 | T17: 20th | U17: =IF(eVAL(T17)>0,IF(eVAL(T17)<=U$6,VLOOKUP(eVAL(T17),Multiplier,2)*126,0),"") -> 690.48 | W17: 107th | X17: 0 | Z17: 95th | AA17: 0 | AC17: 84th | AD17: =IF(eVAL(AC17)>0,IF(eVAL(AC17)<=AD$6,VLOOKUP(eVAL(AC17),Multiplier,2)*eVAL(AD$3),0),"") -> 0 | AI17: 5th | AJ17: =IF(eVAL(AI17)>0,IF(eVAL(AI17)<=AJ$6,VLOOKUP(eVAL(AI17),Multiplier,2)*eVAL(AJ$3),0),"") -> 897
A18: 10 | B18: HAMPSON, Sarah-Jane | C18: West Fife | D18: SCO | E18: 96 | F18: 601.68 | G18: 2488.16 | H18: 0 | I18: 3089.84 | J18: 1+3+0 | K18: 41st | L18: [206.08] | N18: 8th | O18: =IF(eVAL(N18)>0,IF(eVAL(N18)<=$O$6,VLOOKUP(eVAL(N18),Multiplier,2)*O$3,0),"") -> 1043.28 | Q18: 7th | R18: =IF(eVAL(Q18)>0,IF(eVAL(Q18)<=R$6,VLOOKUP(eVAL(Q18),Multiplier,2)*R$3,0),"") -> 749.36 | T18: 19th | U18: =IF(eVAL(T18)>0,IF(eVAL(T18)<=U$6,VLOOKUP(eVAL(T18),Multiplier,2)*126,0),"") -> 695.52 | AI18: 13th | AJ18: =IF(eVAL(AI18)>0,IF(eVAL(AI18)<=AJ$6,VLOOKUP(eVAL(AI18),Multiplier,2)*eVAL(AJ$3),0),"") -> 601.68
A19: 11 | B19: SOSNOWSKA, Izabela | C19: Exeter Uni | D19: ENG | E19: 93 | F19: 598.92 | G19: 2406.92 | H19: 0 | I19: 3005.84 | J19: 1+3+1 | K19: 20th | L19: =IF(eVAL(K19)>0,IF(eVAL(K19)<=$L$6,VLOOKUP(eVAL(K19),Multiplier,2)*112,0),"") -> 613.76 | N19: 12th | O19: =IF(eVAL(N19)>0,IF(eVAL(N19)<=$O$6,VLOOKUP(eVAL(N19),Multiplier,2)*O$3,0),"") -> 709.56 | R19: =IF(eVAL(Q19)>0,IF(eVAL(Q19)<=R$6,VLOOKUP(eVAL(Q19),Multiplier,2)*R$3,0),"") ->  | T19: 16th | U19: =IF(eVAL(T19)>0,IF(eVAL(T19)<=U$6,VLOOKUP(eVAL(T19),Multiplier,2)*126,0),"") -> 1083.6 | W19: 93rd | X19: 0 | AI19: 14th | AJ19: =IF(eVAL(AI19)>0,IF(eVAL(AI19)<=AJ$6,VLOOKUP(eVAL(AI19),Multiplier,2)*eVAL(AJ$3),0),"") -> 598.92
A20: 12 | B20: NELSON, Hannah | C20: Camden | D20: ENG | E20: 95 | F20: 0 | G20: 2739.16 | H20: 0 | I20: 2739.16 | J20: 0+3+2 | K20: 11th | L20: =IF(eVAL(K20)>0,IF(eVAL(K20)<=$L$6,VLOOKUP(eVAL(K20),Multiplier,2)*112,0),"") -> 985.6 | N20: 5th | O20: =IF(eVAL(N20)>0,IF(eVAL(N20)<=$O$6,VLOOKUP(eVAL(N20),Multiplier,2)*O$3,0),"") -> 1053 | Q20: 9th | R20: [515.04] | T20: 18th | U20: =IF(eVAL(T20)>0,IF(eVAL(T20)<=U$6,VLOOKUP(eVAL(T20),Multiplier,2)*126,0),"") -> 700.56 | W20: 104th | X20: 0 | Z20: 131st | AA20: 0
A21: 13 | B21: SLEEMAN, Kiera | C21: Truro | D21: ENG | E21: 97 | F21: 1104 | G21: 1437.2 | H21: 0 | I21: 2541.2 | J21: 1+2+0 | K21: 10th | L21: =IF(eVAL(K21)>0,IF(eVAL(K21)<=$L$6,VLOOKUP(eVAL(K21),Multiplier,2)*112,0),"") -> 990.08 | N21: 19th | O21: =IF(eVAL(N21)>0,IF(eVAL(N21)<=$O$6,VLOOKUP(eVAL(N21),Multiplier,2)*O$3,0),"") -> 447.12 | R21: =IF(eVAL(Q21)>0,IF(eVAL(Q21)<=R$6,VLOOKUP(eVAL(Q21),Multiplier,2)*R$3,0),"") ->  | U21: =IF(eVAL(T21)>0,IF(eVAL(T21)<=U$6,VLOOKUP(eVAL(T21),Multiplier,2)*126,0),"") ->  | AI21: 3rd | AJ21: =IF(eVAL(AI21)>0,IF(eVAL(AI21)<=AJ$6,VLOOKUP(eVAL(AI21),Multiplier,2)*eVAL(AJ$3),0),"") -> 1104
A22: 14 | B22: TURNBULL, Isabel | C22: MX Fencing | D22: ENG | E22: 97 | F22: 612.72 | G22: 1628.92 | H22: 0 | I22: 2241.64 | J22: 1+2+0 | K22: 27th | L22: =IF(eVAL(K22)>0,IF(eVAL(K22)<=$L$6,VLOOKUP(eVAL(K22),Multiplier,2)*112,0),"") -> 582.4 | N22: 7th | O22: =IF(eVAL(N22)>0,IF(eVAL(N22)<=$O$6,VLOOKUP(eVAL(N22),Multiplier,2)*O$3,0),"") -> 1046.52 | R22: =IF(eVAL(Q22)>0,IF(eVAL(Q22)<=R$6,VLOOKUP(eVAL(Q22),Multiplier,2)*R$3,0),"") ->  | U22: =IF(eVAL(T22)>0,IF(eVAL(T22)<=U$6,VLOOKUP(eVAL(T22),Multiplier,2)*126,0),"") ->  | AI22: 9th | AJ22: =IF(eVAL(AI22)>0,IF(eVAL(AI22)<=AJ$6,VLOOKUP(eVAL(AI22),Multiplier,2)*eVAL(AJ$3),0),"") -> 612.72
A23: 15 | B23: NOREJKO, Teresa | C23: Truro | D23: WAL | E23: 95 | F23: 609.96 | G23: 1543.2 | H23: 0 | I23: 2153.16 | J23: 1+3+1 | K23: 25th | L23: =IF(eVAL(K23)>0,IF(eVAL(K23)<=$L$6,VLOOKUP(eVAL(K23),Multiplier,2)*112,0),"") -> 591.36 | N23: 15th | O23: =IF(eVAL(N23)>0,IF(eVAL(N23)<=$O$6,VLOOKUP(eVAL(N23),Multiplier,2)*O$3,0),"") -> 699.84 | R23: =IF(eVAL(Q23)>0,IF(eVAL(Q23)<=R$6,VLOOKUP(eVAL(Q23),Multiplier,2)*R$3,0),"") ->  | T23: 33rd | U23: =IF(eVAL(T23)>0,IF(eVAL(T23)<=U$6,VLOOKUP(eVAL(T23),Multiplier,2)*126,0),"") -> 252 | W23: 103rd | X23: 0 | AI23: 10th | AJ23: =IF(eVAL(AI23)>0,IF(eVAL(AI23)<=AJ$6,VLOOKUP(eVAL(AI23),Multiplier,2)*eVAL(AJ$3),0),"") -> 609.96
A24: 16 | B24: BILLINGTON, Lizzie | C24: Shakespeares | D24: NIR | E24: 95 | F24: 0 | G24: 1951.4 | H24: 0 | I24: 1951.4 | J24: 0+3+2 | K24: 23rd | L24: =IF(eVAL(K24)>0,IF(eVAL(K24)<=$L$6,VLOOKUP(eVAL(K24),Multiplier,2)*112,0),"") -> 600.32 | N24: 10th | O24: =IF(eVAL(N24)>0,IF(eVAL(N24)<=$O$6,VLOOKUP(eVAL(N24),Multiplier,2)*O$3,0),"") -> 716.04 | Q24: 10th | R24: [512.72] | T24: 31st | U24: =IF(eVAL(T24)>0,IF(eVAL(T24)<=U$6,VLOOKUP(eVAL(T24),Multiplier,2)*126,0),"") -> 635.04 | W24: 109th | X24: 0 | Z24: 127th | AA24: 0
A25: 17 | B25: CHART, Maria | C25: Truro | D25: ENG | E25: 98 | F25: 598.92 | G25: 1283.48 | H25: 0 | I25: 1882.4 | J25: 1+2+0 | K25: 26th | L25: =IF(eVAL(K25)>0,IF(eVAL(K25)<=$L$6,VLOOKUP(eVAL(K25),Multiplier,2)*112,0),"") -> 586.88 | N25: 16th | O25: =IF(eVAL(N25)>0,IF(eVAL(N25)<=$O$6,VLOOKUP(eVAL(N25),Multiplier,2)*O$3,0),"") -> 696.6 | R25: =IF(eVAL(Q25)>0,IF(eVAL(Q25)<=R$6,VLOOKUP(eVAL(Q25),Multiplier,2)*R$3,0),"") ->  | U25: =IF(eVAL(T25)>0,IF(eVAL(T25)<=U$6,VLOOKUP(eVAL(T25),Multiplier,2)*126,0),"") ->  | AI25: 14th | AJ25: =IF(eVAL(AI25)>0,IF(eVAL(AI25)<=AJ$6,VLOOKUP(eVAL(AI25),Multiplier,2)*eVAL(AJ$3),0),"") -> 598.92
A26: 18 | B26: HUTTON, Daisy | C26: MX Fencing | D26: ENG | E26: 98 | F26: 593.4 | G26: 1008.36 | H26: 0 | I26: 1601.76 | J26: 1+2+0 | K26: 31st | L26: =IF(eVAL(K26)>0,IF(eVAL(K26)<=$L$6,VLOOKUP(eVAL(K26),Multiplier,2)*112,0),"") -> 564.48 | N26: 20th | O26: =IF(eVAL(N26)>0,IF(eVAL(N26)<=$O$6,VLOOKUP(eVAL(N26),Multiplier,2)*O$3,0),"") -> 443.88 | R26: =IF(eVAL(Q26)>0,IF(eVAL(Q26)<=R$6,VLOOKUP(eVAL(Q26),Multiplier,2)*R$3,0),"") ->  | U26: =IF(eVAL(T26)>0,IF(eVAL(T26)<=U$6,VLOOKUP(eVAL(T26),Multiplier,2)*126,0),"") ->  | AI26: 16th | AJ26: =IF(eVAL(AI26)>0,IF(eVAL(AI26)<=AJ$6,VLOOKUP(eVAL(AI26),Multiplier,2)*eVAL(AJ$3),0),"") -> 593.4
A27: 19 | B27: CORBY, Jessica | C27: West Fife | D27: SCO | E27: 98 | F27: 0 | G27: 1424.04 | H27: 0 | I27: 1424.04 | J27: 0+3+0 | K27: 39th | L27: =IF(eVAL(K27)>0,IF(eVAL(K27)<=$L$6,VLOOKUP(eVAL(K27),Multiplier,2)*112,0),"") -> 210.56 | N27: 14th | O27: =IF(eVAL(N27)>0,IF(eVAL(N27)<=$O$6,VLOOKUP(eVAL(N27),Multiplier,2)*O$3,0),"") -> 703.08 | Q27: 11th | R27: =IF(eVAL(Q27)>0,IF(eVAL(Q27)<=R$6,VLOOKUP(eVAL(Q27),Multiplier,2)*R$3,0),"") -> 510.4 | U27: =IF(eVAL(T27)>0,IF(eVAL(T27)<=U$6,VLOOKUP(eVAL(T27),Multiplier,2)*126,0),"") -> 
A28: 20 | B28: LILLYCROP, Megan | C28: Bridgend | D28: WAL | E28: 93 | F28: 0 | G28: 1263.36 | H28: 0 | I28: 1263.36 | J28: 0+2+0 | K28: 28th | L28: =IF(eVAL(K28)>0,IF(eVAL(K28)<=$L$6,VLOOKUP(eVAL(K28),Multiplier,2)*112,0),"") -> 577.92 | R28: =IF(eVAL(Q28)>0,IF(eVAL(Q28)<=R$6,VLOOKUP(eVAL(Q28),Multiplier,2)*R$3,0),"") ->  | T28: 21st | U28: =IF(eVAL(T28)>0,IF(eVAL(T28)<=U$6,VLOOKUP(eVAL(T28),Multiplier,2)*126,0),"") -> 685.44
A29: 21 | B29: CRAWFORD, Anna | C29: Queensland | E29: 93 | F29: 0 | G29: 1095.48 | H29: 0 | I29: 1095.48 | J29: 0+3+0 | K29: 50th | L29: =IF(eVAL(K29)>0,IF(eVAL(K29)<=$L$6,VLOOKUP(eVAL(K29),Multiplier,2)*112,0),"") -> 0 | N29: 18th | O29: =IF(eVAL(N29)>0,IF(eVAL(N29)<=$O$6,VLOOKUP(eVAL(N29),Multiplier,2)*O$3,0),"") -> 450.36 | Q29: 12th | R29: =IF(eVAL(Q29)>0,IF(eVAL(Q29)<=R$6,VLOOKUP(eVAL(Q29),Multiplier,2)*R$3,0),"") -> 0 | T29: 29th | U29: =IF(eVAL(T29)>0,IF(eVAL(T29)<=U$6,VLOOKUP(eVAL(T29),Multiplier,2)*126,0),"") -> 645.12
A30: 22 | B30: MOFFAT, Alice | C30: Stratford | D30: ENG | E30: 96 | F30: 0 | G30: 1083.6 | H30: 0 | I30: 1083.6 | J30: 0+2+0 | L30: =IF(eVAL(K30)>0,IF(eVAL(K30)<=$L$6,VLOOKUP(eVAL(K30),Multiplier,2)*112,0),"") ->  | N30: 17th | O30: =IF(eVAL(N30)>0,IF(eVAL(N30)<=$O$6,VLOOKUP(eVAL(N30),Multiplier,2)*O$3,0),"") -> 453.6 | R30: =IF(eVAL(Q30)>0,IF(eVAL(Q30)<=R$6,VLOOKUP(eVAL(Q30),Multiplier,2)*R$3,0),"") ->  | T30: 32nd | U30: =IF(eVAL(T30)>0,IF(eVAL(T30)<=U$6,VLOOKUP(eVAL(T30),Multiplier,2)*126,0),"") -> 630
A31: 23 | B31: BANKS, Paisley | C31: Millfield | D31: ENG | E31: 96 | F31: 607.2 | G31: 440.64 | H31: 0 | I31: 1047.84 | J31: 1+2+0 | L31: =IF(eVAL(K31)>0,IF(eVAL(K31)<=$L$6,VLOOKUP(eVAL(K31),Multiplier,2)*112,0),"") ->  | N31: 21st | O31: =IF(eVAL(N31)>0,IF(eVAL(N31)<=$O$6,VLOOKUP(eVAL(N31),Multiplier,2)*O$3,0),"") -> 440.64 | Q31: 14th | R31: =IF(eVAL(Q31)>0,IF(eVAL(Q31)<=R$6,VLOOKUP(eVAL(Q31),Multiplier,2)*R$3,0),"") -> 0 | U31: =IF(eVAL(T31)>0,IF(eVAL(T31)<=U$6,VLOOKUP(eVAL(T31),Multiplier,2)*126,0),"") ->  | AI31: 11th | AJ31: =IF(eVAL(AI31)>0,IF(eVAL(AI31)<=AJ$6,VLOOKUP(eVAL(AI31),Multiplier,2)*eVAL(AJ$3),0),"") -> 607.2
A32: 24 | B32: RIDGEON, Verity | C32: Scimitar | D32: ENG | E32: 93 | F32: 0 | G32: 967.68 | H32: 0 | I32: 967.68 | J32: 0+1+0 | K32: 15th | L32: =IF(eVAL(K32)>0,IF(eVAL(K32)<=$L$6,VLOOKUP(eVAL(K32),Multiplier,2)*112,0),"") -> 967.68 | R32: =IF(eVAL(Q32)>0,IF(eVAL(Q32)<=R$6,VLOOKUP(eVAL(Q32),Multiplier,2)*R$3,0),"") ->  | U32: =IF(eVAL(T32)>0,IF(eVAL(T32)<=U$6,VLOOKUP(eVAL(T32),Multiplier,2)*126,0),"") -> 
A33: 25 | B33: MAXWELL, Caitlin | C33: Truro | D33: ENG | E33: 99 | F33: 604.44 | G33: 0 | H33: 0 | I33: 604.44 | J33: 1+0+0 | AI33: 12th | AJ33: =IF(eVAL(AI33)>0,IF(eVAL(AI33)<=AJ$6,VLOOKUP(eVAL(AI33),Multiplier,2)*eVAL(AJ$3),0),"") -> 604.44
A34: 26 | B34: ROSE, Sarah | C34: St Albans | D34: ENG | E34: 94 | F34: 0 | G34: 208.32 | H34: 0 | I34: 208.32 | J34: 0+1+0 | K34: 40th | L34: =IF(eVAL(K34)>0,IF(eVAL(K34)<=$L$6,VLOOKUP(eVAL(K34),Multiplier,2)*112,0),"") -> 208.32 | R34: =IF(eVAL(Q34)>0,IF(eVAL(Q34)<=R$6,VLOOKUP(eVAL(Q34),Multiplier,2)*R$3,0),"") ->  | U34: =IF(eVAL(T34)>0,IF(eVAL(T34)<=U$6,VLOOKUP(eVAL(T34),Multiplier,2)*126,0),"") -> 
A35: 27 | B35: BLACK, Gabrielle | C35: Escrime Academy | D35: ENG | E35: 98 | F35: 0 | G35: 0 | H35: 0 | I35: 0 | J35: 1+1+0 | L35: =IF(eVAL(K35)>0,IF(eVAL(K35)<=$L$6,VLOOKUP(eVAL(K35),Multiplier,2)*112,0),"") ->  | N35: 26th | O35: =IF(eVAL(N35)>0,IF(eVAL(N35)<=$O$6,VLOOKUP(eVAL(N35),Multiplier,2)*O$3,0),"") -> 0 | R35: =IF(eVAL(Q35)>0,IF(eVAL(Q35)<=R$6,VLOOKUP(eVAL(Q35),Multiplier,2)*R$3,0),"") ->  | U35: =IF(eVAL(T35)>0,IF(eVAL(T35)<=U$6,VLOOKUP(eVAL(T35),Multiplier,2)*126,0),"") ->  | AI35: 17th | AJ35: =IF(eVAL(AI35)>0,IF(eVAL(AI35)<=AJ$6,VLOOKUP(eVAL(AI35),Multiplier,2)*eVAL(AJ$3),0),"") -> 0
A36: 27 | B36: BURTON, Emma | C36: Bedford | D36: ENG | E36: 94 | F36: 0 | G36: 0 | H36: 0 | I36: 0 | J36: 1+1+0 | K36: 51st | L36: =IF(eVAL(K36)>0,IF(eVAL(K36)<=$L$6,VLOOKUP(eVAL(K36),Multiplier,2)*112,0),"") -> 0 | R36: =IF(eVAL(Q36)>0,IF(eVAL(Q36)<=R$6,VLOOKUP(eVAL(Q36),Multiplier,2)*R$3,0),"") ->  | U36: =IF(eVAL(T36)>0,IF(eVAL(T36)<=U$6,VLOOKUP(eVAL(T36),Multiplier,2)*126,0),"") ->  | AI36: 20th | AJ36: =IF(eVAL(AI36)>0,IF(eVAL(AI36)<=AJ$6,VLOOKUP(eVAL(AI36),Multiplier,2)*eVAL(AJ$3),0),"") -> 0
A37: 27 | B37: DAVIES, Harriet | C37: Bath Swords | D37: ENG | E37: 94 | F37: 0 | G37: 0 | H37: 0 | I37: 0 | J37: 1+3+0 | K37: 47th | L37: =IF(eVAL(K37)>0,IF(eVAL(K37)<=$L$6,VLOOKUP(eVAL(K37),Multiplier,2)*112,0),"") -> 0 | N37: 28th | O37: =IF(eVAL(N37)>0,IF(eVAL(N37)<=$O$6,VLOOKUP(eVAL(N37),Multiplier,2)*O$3,0),"") -> 0 | Q37: 15th | R37: =IF(eVAL(Q37)>0,IF(eVAL(Q37)<=R$6,VLOOKUP(eVAL(Q37),Multiplier,2)*R$3,0),"") -> 0 | U37: =IF(eVAL(T37)>0,IF(eVAL(T37)<=U$6,VLOOKUP(eVAL(T37),Multiplier,2)*126,0),"") ->  | AI37: 21st | AJ37: =IF(eVAL(AI37)>0,IF(eVAL(AI37)<=AJ$6,VLOOKUP(eVAL(AI37),Multiplier,2)*eVAL(AJ$3),0),"") -> 0
A38: 27 | B38: FOSTER, Charlotte | C38: CADS | D38: ENG | E38: 98 | F38: 0 | G38: 0 | H38: 0 | I38: 0 | J38: 1+0+0 | AI38: 18th | AJ38: =IF(eVAL(AI38)>0,IF(eVAL(AI38)<=AJ$6,VLOOKUP(eVAL(AI38),Multiplier,2)*eVAL(AJ$3),0),"") -> 0
A39: 27 | B39: GWILLIM-THOMAS, Rose | C39: Headington | D39: ENG | E39: 96 | F39: 0 | G39: 0 | H39: 0 | I39: 0 | J39: 0+1+0 | L39: =IF(eVAL(K39)>0,IF(eVAL(K39)<=$L$6,VLOOKUP(eVAL(K39),Multiplier,2)*112,0),"") ->  | N39: 29th | O39: =IF(eVAL(N39)>0,IF(eVAL(N39)<=$O$6,VLOOKUP(eVAL(N39),Multiplier,2)*O$3,0),"") -> 0 | R39: =IF(eVAL(Q39)>0,IF(eVAL(Q39)<=R$6,VLOOKUP(eVAL(Q39),Multiplier,2)*R$3,0),"") ->  | U39: =IF(eVAL(T39)>0,IF(eVAL(T39)<=U$6,VLOOKUP(eVAL(T39),Multiplier,2)*126,0),"") -> 
A40: 27 | B40: HALLIWELL Chloe | C40: Shakespeare's | D40: ENG | E40: 98 | F40: 0 | G40: 0 | H40: 0 | I40: 0 | J40: 0+1+0 | K40: 61st | L40: =IF(eVAL(K40)>0,IF(eVAL(K40)<=$L$6,VLOOKUP(eVAL(K40),Multiplier,2)*112,0),"") -> 0 | R40: =IF(eVAL(Q40)>0,IF(eVAL(Q40)<=R$6,VLOOKUP(eVAL(Q40),Multiplier,2)*R$3,0),"") ->  | U40: =IF(eVAL(T40)>0,IF(eVAL(T40)<=U$6,VLOOKUP(eVAL(T40),Multiplier,2)*126,0),"") -> 
A41: 27 | B41: HEEPS, Katie | C41: West Fife | D41: SCO | E41: 97 | F41: 0 | G41: 0 | H41: 0 | I41: 0 | J41: 0+2+0 | K41: 58th | L41: =IF(eVAL(K41)>0,IF(eVAL(K41)<=$L$6,VLOOKUP(eVAL(K41),Multiplier,2)*112,0),"") -> 0 | Q41: 13th | R41: =IF(eVAL(Q41)>0,IF(eVAL(Q41)<=R$6,VLOOKUP(eVAL(Q41),Multiplier,2)*R$3,0),"") -> 0 | U41: =IF(eVAL(T41)>0,IF(eVAL(T41)<=U$6,VLOOKUP(eVAL(T41),Multiplier,2)*126,0),"") -> 
A42: 27 | B42: INGOLDSBY, Rebecca | C42: Bath Swords | D42: ENG | E42: 97 | F42: 0 | G42: 0 | H42: 0 | I42: 0 | J42: 1+0+0 | AI42: 19th | AJ42: =IF(eVAL(AI42)>0,IF(eVAL(AI42)<=AJ$6,VLOOKUP(eVAL(AI42),Multiplier,2)*eVAL(AJ$3),0),"") -> 0
A43: 27 | B43: LUCAS, Bethan | C43: Bedford | D43: ENG | E43: 96 | F43: 0 | G43: 0 | H43: 0 | I43: 0 | J43: 0+1+0 | L43: =IF(eVAL(K43)>0,IF(eVAL(K43)<=$L$6,VLOOKUP(eVAL(K43),Multiplier,2)*112,0),"") ->  | N43: 24th | O43: =IF(eVAL(N43)>0,IF(eVAL(N43)<=$O$6,VLOOKUP(eVAL(N43),Multiplier,2)*O$3,0),"") -> 0 | R43: =IF(eVAL(Q43)>0,IF(eVAL(Q43)<=R$6,VLOOKUP(eVAL(Q43),Multiplier,2)*R$3,0),"") ->  | U43: =IF(eVAL(T43)>0,IF(eVAL(T43)<=U$6,VLOOKUP(eVAL(T43),Multiplier,2)*126,0),"") -> 
A44: 27 | B44: SMITH, Millie | C44: Truro | D44: ENG | E44: 94 | F44: 0 | G44: 0 | H44: 0 | I44: 0 | J44: 0+1+0 | L44: =IF(eVAL(K44)>0,IF(eVAL(K44)<=$L$6,VLOOKUP(eVAL(K44),Multiplier,2)*112,0),"") ->  | N44: 24th | O44: =IF(eVAL(N44)>0,IF(eVAL(N44)<=$O$6,VLOOKUP(eVAL(N44),Multiplier,2)*O$3,0),"") -> 0 | R44: =IF(eVAL(Q44)>0,IF(eVAL(Q44)<=R$6,VLOOKUP(eVAL(Q44),Multiplier,2)*R$3,0),"") ->  | U44: =IF(eVAL(T44)>0,IF(eVAL(T44)<=U$6,VLOOKUP(eVAL(T44),Multiplier,2)*126,0),"") -> 
A45: 27 | B45: STEVENS, Miranda | C45: MX Fencing | D45: ENG | E45: 98 | F45: 0 | G45: 0 | H45: 0 | I45: 0 | J45: 0+1+0 | L45: =IF(eVAL(K45)>0,IF(eVAL(K45)<=$L$6,VLOOKUP(eVAL(K45),Multiplier,2)*112,0),"") ->  | N45: 27th | O45: =IF(eVAL(N45)>0,IF(eVAL(N45)<=$O$6,VLOOKUP(eVAL(N45),Multiplier,2)*O$3,0),"") -> 0 | R45: =IF(eVAL(Q45)>0,IF(eVAL(Q45)<=R$6,VLOOKUP(eVAL(Q45),Multiplier,2)*R$3,0),"") ->  | U45: =IF(eVAL(T45)>0,IF(eVAL(T45)<=U$6,VLOOKUP(eVAL(T45),Multiplier,2)*126,0),"") -> 
A46: 27 | B46: VIDAL, Clemence | C46: Escrime Academy | F46: 0 | G46: 0 | H46: 0 | I46: 0 | J46: 0+1+0 | L46: =IF(eVAL(K46)>0,IF(eVAL(K46)<=$L$6,VLOOKUP(eVAL(K46),Multiplier,2)*112,0),"") ->  | N46: 25th | O46: =IF(eVAL(N46)>0,IF(eVAL(N46)<=$O$6,VLOOKUP(eVAL(N46),Multiplier,2)*O$3,0),"") -> 0 | R46: =IF(eVAL(Q46)>0,IF(eVAL(Q46)<=R$6,VLOOKUP(eVAL(Q46),Multiplier,2)*R$3,0),"") ->  | U46: =IF(eVAL(T46)>0,IF(eVAL(T46)<=U$6,VLOOKUP(eVAL(T46),Multiplier,2)*126,0),"") -> 
A47: 27 | B47: WYATT, Layla | C47: Salle Hunt Roeder | D47: ENG | E47: 94 | F47: 0 | G47: 0 | H47: 0 | I47: 0 | J47: 1+3+0 | K47: 48th | L47: =IF(eVAL(K47)>0,IF(eVAL(K47)<=$L$6,VLOOKUP(eVAL(K47),Multiplier,2)*112,0),"") -> 0 | N47: 22nd | O47: =IF(eVAL(N47)>0,IF(eVAL(N47)<=$O$6,VLOOKUP(eVAL(N47),Multiplier,2)*O$3,0),"") -> 0 | R47: =IF(eVAL(Q47)>0,IF(eVAL(Q47)<=R$6,VLOOKUP(eVAL(Q47),Multiplier,2)*R$3,0),"") ->  | T47: 36th | U47: =IF(eVAL(T47)>0,IF(eVAL(T47)<=U$6,VLOOKUP(eVAL(T47),Multiplier,2)*126,0),"") -> 0 | AI47: 22nd | AJ47: =IF(eVAL(AI47)>0,IF(eVAL(AI47)<=AJ$6,VLOOKUP(eVAL(AI47),Multiplier,2)*eVAL(AJ$3),0),"") -> 0
A48: 999 | B48: ALLEN, Sophie | C48: Truro | D48: ENG | E48: 96 | F48: 0 | G48: 0 | H48: 0 | I48: 0 | J48: 0+0+0
A49: 999 | B49: BADGER, Laura | C49: Stourbridge | D49: ENG | E49: 94 | F49: 0 | G49: 0 | H49: 0 | I49: 0 | J49: 0+0+0
A50: 999 | B50: BRADLEY, Eucalypta | C50: Camden | D50: ENG | E50: 93 | F50: 0 | G50: 0 | H50: 0 | I50: 0 | J50: 0+0+0
A51: 999 | B51: CAMPBELL, Hannah | C51: Bedford | D51: ENG | E51: 94 | F51: 0 | G51: 0 | H51: 0 | I51: 0 | J51: 0+0+0
A52: 999 | B52: CARSON, Victoria | C52: City | D52: SCO | E52: 94 | F52: 0 | G52: 0 | H52: 0 | I52: 0 | J52: 0+0+0
A53: 999 | B53: CLEAVER, Polly | C53: Stratford | D53: ENG | E53: 94 | F53: 0 | G53: 0 | H53: 0 | I53: 0 | J53: 0+0+0
A54: 999 | B54: CLUTTERBUCK, Hannah | C54: Tameside | D54: ENG | E54: 95 | F54: 0 | G54: 0 | H54: 0 | I54: 0 | J54: 0+0+0
A55: 999 | B55: CONNOR, Harriet | C55: Stormount | D55: NIR | E55: 94 | F55: 0 | G55: 0 | H55: 0 | I55: 0 | J55: 0+0+0
A56: 999 | B56: CRASTES, Emma | C56: Escrime Academy | D56: ENG | E56: 95 | F56: 0 | G56: 0 | H56: 0 | I56: 0 | J56: 0+0+0
A57: 999 | B57: EVANS, Jasmine | C57: Tauton Deane | D57: ENG | E57: 95 | F57: 0 | G57: 0 | H57: 0 | I57: 0 | J57: 0+0+0
A58: 999 | B58: FENTON, Niamh | C58: MX Fencing | E58: 97 | F58: 0 | G58: 0 | H58: 0 | I58: 0 | J58: 0+0+0
A59: 999 | B59: FRAZER, Naomi | C59: Stourbridge | D59: ENG | E59: 93 | F59: 0 | G59: 0 | H59: 0 | I59: 0 | J59: 0+0+0
A60: 999 | B60: HALL, Eleanor | C60: LTFC | D60: ENG | E60: 94 | F60: 0 | G60: 0 | H60: 0 | I60: 0 | J60: 0+0+0
A61: 999 | B61: HARRIS, Philippa | C61: Sheffield Sword | D61: WAL | E61: 93 | F61: 0 | G61: 0 | H61: 0 | I61: 0 | J61: 0+0+0
A62: 999 | B62: HELLEWELL, Sarah | C62: Strathallan | D62: SCO | E62: 94 | F62: 0 | G62: 0 | H62: 0 | I62: 0 | J62: 0+0+0
A63: 999 | B63: HORRIX, Emma | C63: Camden | D63: ENG | E63: 93 | F63: 0 | G63: 0 | H63: 0 | I63: 0 | J63: 0+0+0
A64: 999 | B64: HOUSEMAN, Gaby | C64: Xiphoi | D64: ENG | E64: 94 | F64: 0 | G64: 0 | H64: 0 | I64: 0 | J64: 0+0+0
A65: 999 | B65: HOWELLS, Abigail | C65: Bridgend | D65: ENG | E65: 94 | F65: 0 | G65: 0 | H65: 0 | I65: 0 | J65: 0+0+0
A66: 999 | B66: HUGHES, Frances | C66: Ddraig Wern | D66: WAL | E66: 94 | F66: 0 | G66: 0 | H66: 0 | I66: 0 | J66: 0+0+0
A67: 999 | B67: JONES, Libby | C67: Ddraig Wern | D67: WAL | E67: 93 | F67: 0 | G67: 0 | H67: 0 | I67: 0 | J67: 0+0+0
A68: 999 | B68: KERR, Leanne | C68: LTFC | D68: ENG | E68: 94 | F68: 0 | G68: 0 | H68: 0 | I68: 0 | J68: 0+0+0
A69: 999 | B69: LEWIS, Jessica | C69: Lazlo | D69: ENG | E69: 96 | F69: 0 | G69: 0 | H69: 0 | I69: 0 | J69: 0+0+0
A70: 999 | B70: MURRAY, Jessica | C70: Edinburgh | D70: SCO | E70: 93 | F70: 0 | G70: 0 | H70: 0 | I70: 0 | J70: 0+0+0
A71: 999 | B71: PRADHAN, Jzuee | C71: North London | D71: ENG | E71: 93 | F71: 0 | G71: 0 | H71: 0 | I71: 0 | J71: 0+0+0
A72: 999 | B72: ROWLAND, Helen | C72: Shakespeare's | D72: ENG | E72: 94 | F72: 0 | G72: 0 | H72: 0 | I72: 0 | J72: 0+0+0
A73: 999 | B73: ROY, Chloe | C73: Lazlo | D73: ENG | E73: 93 | F73: 0 | G73: 0 | H73: 0 | I73: 0 | J73: 0+0+0
A74: 999 | B74: SHATALINA, Katerina | C74: Camden | D74: ENG | E74: 94 | F74: 0 | G74: 0 | H74: 0 | I74: 0 | J74: 0+0+0
A75: 999 | B75: SPENCE, Niamh | C75: Foyle & Londonderry | D75: NIR | E75: 94 | F75: 0 | G75: 0 | H75: 0 | I75: 0 | J75: 0+0+0
A76: 999 | B76: STRATFORD, Jessica | C76: Manchester FC | D76: ENG | E76: 94 | F76: 0 | G76: 0 | H76: 0 | I76: 0 | J76: 0+0+0
A77: 999 | B77: TALLON, Harriot | C77: Rivington Park | D77: ENG | E77: 95 | F77: 0 | G77: 0 | H77: 0 | I77: 0 | J77: 0+0+0
A78: 999 | B78: WHITE, Lucy | C78: Bath Sword | D78: ENG | E78: 94 | F78: 0 | G78: 0 | H78: 0 | I78: 0 | J78: 0+0+0
A79: 999 | B79: YATES, Georgia | C79: Canterbury | D79: ENG | E79: 94 | F79: 0 | G79: 0 | H79: 0 | I79: 0 | J79: 0+0+0

Sheet Mult
A1: Position Multipliers
B2: Without Reprecage | C2: With Reprecage
A3: position
A4: 0 | B4: 0 | C4: 0
A5: 1 | B5: 20 | C5: 20
A6: 2 | B6: 18 | C6: 18
A7: 3 | B7: 16 | C7: 16
A8: 5 | B8: 13 | C8: 13
A9: 6 | B9: 12.96 | C9: 12.96
A10: 7 | B10: 12.92 | C10: 12.92
A11: 8 | B11: 12.88 | C11: 12.88
A12: 9 | B12: 8.88 | C12: 10.38
A13: 10 | B13: 8.84 | C13: 10.34
A14: 11 | B14: 8.8 | C14: 10.3
A15: 12 | B15: 8.76 | C15: 10.26
A16: 13 | B16: 8.72 | C16: 8.72
A17: 14 | B17: 8.68 | C17: 8.68
A18: 15 | B18: 8.64 | C18: 8.64
A19: 16 | B19: 8.6 | C19: 8.6
A20: 17 | B20: 5.6 | C20: 7.1
A21: 18 | B21: 5.56 | C21: 7.06
A22: 19 | B22: 5.52 | C22: 7.02
A23: 20 | B23: 5.48 | C23: 6.98
A24: 21 | B24: 5.44 | C24: 6.94
A25: 22 | B25: 5.4 | C25: 6.9
A26: 23 | B26: 5.36 | C26: 6.86
A27: 24 | B27: 5.32 | C27: 6.82
A28: 25 | B28: 5.28 | C28: 5.28
A29: 26 | B29: 5.24 | C29: 5.24
A30: 27 | B30: 5.2 | C30: 5.2
A31: 28 | B31: 5.16 | C31: 5.16
A32: 29 | B32: 5.12 | C32: 5.12
A33: 30 | B33: 5.08 | C33: 5.08
A34: 31 | B34: 5.04 | C34: 5.04
A35: 32 | B35: 5 | C35: 5
A36: 33 | B36: 2 | C36: 2
A37: 34 | B37: 1.98 | C37: 1.98
A38: 35 | B38: 1.96 | C38: 1.96
A39: 36 | B39: 1.94 | C39: 1.94
A40: 37 | B40: 1.92 | C40: 1.92
A41: 38 | B41: 1.9 | C41: 1.9
A42: 39 | B42: 1.88 | C42: 1.88
A43: 40 | B43: 1.86 | C43: 1.86
A44: 41 | B44: 1.84 | C44: 1.84
A45: 42 | B45: 1.82 | C45: 1.82
A46: 43 | B46: 1.8 | C46: 1.8
A47: 44 | B47: 1.78 | C47: 1.78
A48: 45 | B48: 1.76 | C48: 1.76
A49: 46 | B49: 1.74 | C49: 1.74
A50: 47 | B50: 1.72 | C50: 1.72
A51: 48 | B51: 1.7 | C51: 1.7
A52: 49 | B52: 1.68 | C52: 1.68
A53: 50 | B53: 1.66 | C53: 1.66
A54: 51 | B54: 1.64 | C54: 1.64
A55: 52 | B55: 1.62 | C55: 1.62
A56: 53 | B56: 1.6 | C56: 1.6
A57: 54 | B57: 1.58 | C57: 1.58
A58: 55 | B58: 1.56 | C58: 1.56
A59: 56 | B59: 1.54 | C59: 1.54
A60: 57 | B60: 1.52 | C60: 1.52
A61: 58 | B61: 1.5 | C61: 1.5
A62: 59 | B62: 1.48 | C62: 1.48
A63: 60 | B63: 1.46 | C63: 1.46
A64: 61 | B64: 1.44 | C64: 1.44
A65: 62 | B65: 1.42 | C65: 1.42
A66: 63 | B66: 1.4 | C66: 1.4
A67: 64 | B67: 1.38 | C67: 1.38
A68: 65 | B68: 0 | C68: 0
